Cogmind - Beta 12 @@@ ROGUE MODE // 2023.04.16 @ 23:05:05 Player: Inkie Result: Escaped! Performance ------------- Evolutions (9) 4500 Regions Visited (37) 7400 Robots Destroyed (249) 1245 Value Destroyed (9885) 9885 Prototype IDs (78) 1560 Alien Tech Used (15) 3000 Bonus (10522) 10522 TOTAL SCORE: 38112 Bonus ------- High Alert Combat Kills 365 Follower Combat Kills 1295 Network Hubs Disabled 400 Destroyed Z-Imprinter 1000 Triggered Deep Caves Wall 500 Exposed GOLEM Chamber 500 Met Zhirov 300 Met Warlord at Base 500 MAIN.C Attacked Warlord 500 A7 Reached Mainframe 300 Met Warlord at Research 2000 Met Architect 300 Win 3000 Friendly Fire -438 Cogmind --------- Core Integrity 1212/1600 Matter 40/300 Energy 410/735 System Corruption 0% Temperature Cool (36) Movement Hovering (20) Location To Epsilon Eridani Parts ------- > --- POWER (3) -------- Compact Particle Reactor Matter Drive > --- PROPULSION (9) --- Improved Antigrav System Cooled Antigrav System Cooled Antigrav System Cooled Antigrav System Combat Linear Gravjet Combat Linear Gravjet Combat Linear Gravjet Combat Linear Gravjet Combat Linear Gravjet > --- UTILITY (12) ----- Advanced Power Amplifier Advanced Thermal Generator High-capacity Storage Unit Experimental Energy Well Zionite Metafield Generator Enhanced Optical Array Long-range Terrain Scanner Advanced Reaction Control System Improved Phase Shifter Centrium Medium Armor Plating AEGIS Remote Shield > --- WEAPON (2) ------- Sigix Broadsword > --- INVENTORY (20) --- Quantum Reactor Quantum Reactor Cooled Antigrav System Precision Matter Filter Experimental Weapon Cycler Advanced Transmission Jammer Makeshift ECM Suite Thermal Defense Suite Antimissile System Improved Trap Extractor (6/6 Fire) Transdimensional Reconstructor Core Regenerator Core Regenerator Microwarp Drive Nova Cannon Core Cannon Compact Mass Driver Heavy Proton Missile Launcher Peak State ------------ > --- POWER ------------ Compact Particle Reactor Matter Drive > --- PROPULSION ------- Improved Antigrav System Cooled Antigrav System Cooled Antigrav System Cooled Antigrav System Combat Linear Gravjet Combat Linear Gravjet Combat Linear Gravjet Combat Linear Gravjet Combat Linear Gravjet > --- UTILITY ---------- Advanced Power Amplifier Advanced Thermal Generator High-capacity Storage Unit Experimental Energy Well Zionite Metafield Generator Enhanced Optical Array Long-range Terrain Scanner Precision Matter Filter Advanced Reaction Control System Improved Phase Shifter Centrium Medium Armor Plating AEGIS Remote Shield > --- WEAPON ----------- Sigix Broadsword > --- INVENTORY -------- Quantum Reactor Quantum Reactor Experimental Weapon Cycler Advanced Transmission Jammer Makeshift ECM Suite Thermal Defense Suite Antimissile System Improved Trap Extractor Transdimensional Reconstructor Core Regenerator Core Regenerator Microwarp Drive Nova Cannon Core Cannon Compact Mass Driver Heavy Proton Missile Launcher [Rating: 246] Favorites ----------- Power Quantum Reactor Engine Light Ion Engine Power Core Fission Core Reactor Quantum Reactor Propulsion Combat Linear Gravjet Treads Light Treads Leg Assembled Alloy Leg Hover Unit Combat Linear Gravjet Flight Unit Improved VTOL Module Utility Improved Hacking Suite Device GOLEM Unit Storage High-capacity Storage Unit Processor Improved Signal Interpreter Hackware Improved Hacking Suite Protection Experimental Utility Shielding Weapon Assembled Focal Cannon Energy Gun Advanced Variable Charge Gun Energy Cannon Assembled Focal Cannon Ballistic Gun Heavy Assault Rifle Ballistic Cannon Gauss Cannon Launcher Rocket Array Special Weapon Improved Plasma Cutter Impact Weapon Impact Mace Slashing Weapon Sigix Broadsword Piercing Weapon CR-A16's Pointy Stick Special Melee Weapon Datajack Build | -11 -10 -10 -10 -9 -8 -8 -7 -7 -7 -7 -7 -6 -6 -6 -6 -6 -6 -5 -5 -5 -5 -5 -5 -4 -4 -4 -4 -4 -3 -3 -3 -2 -2 -2 -1 -1 -1 ------- Run | Jun Mat Min Exi Min Mat Sto Fac Low Low Zio Dee Pro Fac Ext Cet Arc Hub Fac Was Fac Upp Upp Zhi Pro Fac Upp Upp War Pro Res Tes Res Qua Sec Acc Com Ac0 Slots Evolved 18 | . . . . . 4 . 2 . . . . . 2 . . . . 2 . . . . . . 2 . . . . 2 . 2 . . 2 . . Power 2 | . . . . . . . . . . . . . . . . . . . . . . . . . 1 . . . . . . 1 . . . . . Propulsion 7 | . . . . . . . 2 . . . . . . . . . . 2 . . . . . . . . . . . 2 . 1 . . . . . Utility 9 | . . . . . 4 . . . . . . . 2 . . . . . . . . . . . 1 . . . . . . . . . 2 . . Weapon . | . . . . . . . . . . . . . . . . . . . . . . . . . . . . . . . . . . . . . . Parts Attached 451 | 5 6 . 1 8 23 16 33 2 3 3 29 . 31 2 5 13 . 24 2 29 7 1 5 4 16 12 1 22 2 24 32 16 25 20 5 17 7 Power 49 | 1 1 . . . 2 3 4 . . . 4 . 4 . 1 1 . 2 . 3 2 . . 1 1 2 . 4 . 1 4 2 2 1 1 1 1 Engine 9 | 1 1 . . . 2 3 . . . . 2 . . . . . . . . . . . . . . . . . . . . . . . . . . Core 20 | . . . . . . . 4 . . . 1 . 3 . 1 . . 2 . 1 1 . . 1 . 2 . 3 . . . 1 . . . . . Reactor 20 | . . . . . . . . . . . 1 . 1 . . 1 . . . 2 1 . . . 1 . . 1 . 1 4 1 2 1 1 1 1 Propulsion 92 | 2 . . . 5 6 6 4 . . . . . 1 1 2 5 . 12 . 9 . . 1 . 5 1 . 1 . 5 11 6 4 . . 2 3 Treads 16 | 2 . . . 5 2 . . . . . . . . . 2 2 . 1 . . . . . . . . . . . . 2 . . . . . . Leg 2 | . . . . . . . . . . . . . 1 1 . . . . . . . . . . . . . . . . . . . . . . . Wheel . | . . . . . . . . . . . . . . . . . . . . . . . . . . . . . . . . . . . . . . Hover 61 | . . . . . . 1 . . . . . . . . . 3 . 11 . 9 . . 1 . 5 1 . 1 . 5 9 6 4 . . 2 3 Flight 13 | . . . . . 4 5 4 . . . . . . . . . . . . . . . . . . . . . . . . . . . . . . Utility 212 | . 1 . 1 1 3 3 18 2 3 1 16 . 21 1 2 5 . 9 1 12 5 . 4 2 7 7 . 11 . 15 11 6 16 11 2 12 3 Device 123 | . . . . 1 1 . 10 2 . . 6 . 12 . 1 5 . 2 1 6 4 . 1 2 1 6 . 9 . 8 6 3 15 9 1 8 3 Storage 14 | . 1 . 1 . . . 1 . . 1 2 . 1 . . . . 1 . 1 . . 2 . . . . 1 . . . . . 1 . 1 . Processor 12 | . . . . . 1 1 1 . 1 . . . 1 . . . . . . 1 . . . . . . . . . 2 1 2 . . 1 . . Hackware 33 | . . . . . . 2 2 . . . . . 6 1 . . . 6 . 3 . . . . 4 . . 1 . 3 4 . . . . 1 . Protection 30 | . . . . . 1 . 4 . 2 . 8 . 1 . 1 . . . . 1 1 . 1 . 2 1 . . . 2 . 1 1 1 . 2 . Artifact . | . . . . . . . . . . . . . . . . . . . . . . . . . . . . . . . . . . . . . . Weapon 98 | 2 4 . . 2 12 4 7 . . 2 9 . 5 . . 2 . 1 1 5 . 1 . 1 3 2 1 6 2 3 6 2 3 8 2 2 . Energy Gun 5 | . . . . . . . . . . . 2 . . . . 1 . . . . . . . . 1 . . 1 . . . . . . . . . Energy Cannon 14 | . . . . . 3 . . . . . . . . . . . . . . . . . . . . . . 2 . 2 . 1 . 4 1 1 . Ballistic Gun 11 | 2 3 . . . . . . . . . . . . . . 1 . 1 . 2 . . . . . . . . . . 1 . 1 . . . . Ballistic Cannon 10 | . . . . . 5 . . . . . . . . . . . . . . . . . . . . 1 . 1 . 1 2 . . . . . . Launcher 34 | . 1 . . 2 3 3 3 . . 1 5 . 5 . . . . . . 2 . 1 . 1 1 1 . 2 2 . . 1 . . . . . Special Weapon 1 | . . . . . . . . . . . . . . . . . . . . . . . . . . . . . . . . . 1 . . . . Impact Weapon 5 | . . . . . 1 1 2 . . 1 . . . . . . . . . . . . . . . . . . . . . . . . . . . Slashing Weapon 11 | . . . . . . . . . . . 1 . . . . . . . . . . . . . . . . . . . 3 . 1 4 1 1 . Piercing Weapon 5 | . . . . . . . . . . . 1 . . . . . . . 1 1 . . . . 1 . 1 . . . . . . . . . . Special Melee Weapon 2 | . . . . . . . 2 . . . . . . . . . . . . . . . . . . . . . . . . . . . . . . Unidentified Prototypes 60 | . . . . . 2 5 1 . 1 1 7 . 1 . 2 5 . . . 1 . . 4 . 1 . . 7 1 2 3 2 2 4 . 4 4 Corrupted Parts 5 | . . . . . . . . . . . . . . . 1 4 . . . . . . . . . . . . . . . . . . . . . System Corruption 22 | . . . . . . . . . . . . . . . 7 15 . . . . . . . . . . . . . . . . . . . . . Parts Lost 70 | . 2 . . 1 12 1 2 . . . 3 . 18 1 . . . 4 . 3 1 . . . 2 3 . 1 1 7 5 1 1 . . . 1 Power 12 | . 1 . . 1 2 . 1 . . . . . 2 . . . . 1 . 1 . . . . 1 1 . . . 1 . . . . . . . Propulsion 14 | . . . . . 3 . . . . . . . 2 . . . . . . . . . . . . 1 . . . 4 3 1 . . . . . Utility 27 | . . . . . 2 . 1 . . . 2 . 12 . . . . 1 . 1 1 . . . 1 1 . . . 2 2 . . . . . 1 Weapon 17 | . 1 . . . 5 1 . . . . 1 . 2 1 . . . 2 . 1 . . . . . . . 1 1 . . . 1 . . . . Highest Loss Streak 6 | . 1 . . 1 6 1 2 . . . 1 . 6 1 . . . 2 . 3 1 . . . 1 2 . 1 1 3 3 1 1 . . . 1 To Critical Strikes 2 | . . . . . . . . . . . . . . . . . . . . . . . . . . 2 . . . . . . . . . . . Average Slot Usage (%) 87 | . 78 85 85 91 63 69 91 95 92 93 87 92 84 91 83 80 81 84 93 93 99 99 93 94 96 83 95 97 92 70 84 94 93 93 92 92 87 Engine 1 | . 8 14 14 10 2 4 . . . . 3 . . . . . . . . . . . . . . . . . . . . . . . . . . Core 2 | . . . . . . . 6 7 7 7 1 . 3 6 6 . . 2 5 1 . . . 2 5 2 10 9 10 . . 1 . . . . . Reactor 2 | . . . . . . . . . . . 1 7 2 . . 5 6 2 . 3 4 5 5 2 3 . . . . 2 8 8 11 11 7 7 5 Treads 5 | . 28 28 28 28 15 . . . . . . . . . 9 11 12 5 . . . . . . . . . . . . 3 . . . . . . Leg 3 | . . . . . . . . . . . 4 14 14 23 5 . . 4 . . . . . . . . . . . . . . . . . . . Hover 11 | . . . . . . . . . . . . . . . . . . 15 33 33 33 33 33 33 30 25 30 30 30 25 23 36 35 37 34 34 34 Flight 4 | . . . . . . 18 30 30 29 28 22 14 2 . . . . . . . . . . . . . . . . . . . . . . . . Device 12 | . . . . 9 13 . 3 2 . . 3 14 17 12 11 12 12 14 12 9 16 16 12 13 16 17 30 28 25 13 6 9 16 19 19 16 26 Storage 8 | . 13 14 14 14 9 . 6 7 7 7 5 12 12 12 12 11 12 10 5 5 5 5 5 5 5 5 5 5 5 4 4 4 4 4 7 5 7 Processor 4 | . . . . . 4 17 15 15 17 21 14 7 1 6 6 6 6 2 . . . . . . . . . . . 1 10 10 5 4 7 7 3 Hackware 13 | . . . . . . 12 15 15 14 14 8 7 13 17 18 18 18 12 27 27 22 22 22 20 22 23 15 15 20 19 18 16 10 8 7 8 . Protection 2 | . . . . . 1 . 2 . 5 7 10 1 3 . . . . 1 . 3 5 5 7 9 3 . . . . . 2 . 3 4 3 5 4 Energy Cannon 3 | . . . . . 1 . . . . . . 8 11 8 12 6 6 3 . . . . . . . . . . . 1 . 1 1 1 . . . Ballistic Gun 3 | . 27 28 28 21 . . . . . . . . . . . . . 4 5 1 . . . . . . . . . . 1 . . . . . . Launcher 1 | . . . . 6 3 8 . . . . 4 5 . 3 . . . . . . 4 4 . 2 2 3 1 1 2 . . . . . . . . Naked Turns . | . . . . . . . . . . . . . . . . . . . . . . . . . . . . . . . . . . . . . . Heaviest Build 138 | 7 29 29 49 50 63 12 23 21 21 23 47 54 138 123 129 125 123 124 101 98 83 69 69 69 80 84 84 118 99 116 84 110 117 127 124 127 130 Greatest Support 170 | 40 40 40 40 40 40 12 22 21 21 21 60 60 75 91 80 160 160 160 99 99 81 73 73 72 84 84 84 84 83 109 170 123 121 131 143 143 131 Greatest Overweight (x) 6 | . . . 1 1 6 1 1 . . 1 2 . 3 2 2 1 . 4 1 1 1 . . . 4 1 . 4 1 1 2 1 1 1 . . . Average Overweight (x) . | . . . . 1 1 . . . . . . . 1 1 1 . . 1 . . . . . . . . . . . . . . . . . . . Largest Inventory Capacity 25 | 5 15 15 20 20 20 20 10 10 10 10 10 10 25 25 25 25 25 25 25 25 20 20 20 20 20 20 20 20 20 20 20 20 20 20 20 20 20 Average Capacity 19 | 5 14 15 18 20 20 5 9 10 10 10 8 10 23 25 25 25 25 24 25 20 20 20 20 20 20 20 20 20 20 20 20 20 20 20 20 20 20 Most Carried 25 | 1 15 15 15 20 20 14 10 10 10 10 10 10 24 25 25 25 24 25 25 25 20 20 20 20 20 20 17 20 20 20 20 20 20 20 20 20 20 Average Carried 17 | . 8 15 15 18 19 5 8 9 9 9 8 9 17 23 24 23 24 21 21 19 19 19 19 19 19 18 17 18 18 17 19 19 19 19 18 19 18 Final Capacity 25 | 5 15 15 20 20 20 5 10 10 10 10 10 10 25 25 25 25 25 25 25 20 20 20 20 20 20 20 20 20 20 20 20 20 20 20 20 20 20 Final Carried 25 | 1 15 15 15 20 15 5 10 10 10 10 10 10 22 25 25 24 24 17 25 20 20 19 20 19 20 17 17 20 18 20 20 20 20 20 19 14 20 Class Distribution -------------------- 34% | Hacker-Mutant 22% | Mutant 9% | Hacker-Sprinter 9% | Wizard-Mutant 6% | Hacker-Golem 3% | Scavenger-Sprinter 3% | Trapper-Sprinter Dominant Class ---------------- Mutant | -10/Materials Mutant | -10/Mines Mutant | -10/Exiles Mutant | -9/Mines Mutant | -8/Materials Sprinter | -8/Storage Hacker-Sprinter | -7/Factory Trapper-Sprinter | -7/Lower Caves Trapper-Sprinter | -7/Lower Caves Trapper-Sprinter | -7/Zion Mutant | -7/Deep Caves Mutant | -6/Proximity Caves Hacker-Golem | -6/Factory Hacker-Mutant | -6/Extension Hacker-Mutant | -6/Cetus Hacker-Mutant | -6/Archives Hacker-Mutant | -6/Hub_04(d) Hacker-Mutant | -5/Factory Wizard-Mutant | -5/Waste Wizard-Mutant | -5/Factory Hacker-Mutant | -5/Upper Caves Hacker-Mutant | -5/Upper Caves Hacker-Mutant | -5/Zhirov Hacker-Mutant | -4/Proximity Caves Wizard-Sprinter | -4/Factory Wizard-Mutant | -4/Upper Caves Hacker-Sprinter | -4/Upper Caves Hacker-Mutant | -4/Warlord Hacker-Mutant | -3/Proximity Caves Hacker-Mutant | -3/Research Scavenger-Mutant | -3/Testing Hacker-Sprinter | -2/Research Scavenger-Sprinter | -2/Quarantine Machinist-Sprinter | -2/Section 7 Machinist-Ninja | -1/Access Machinist-Scout | -1/Command Machinist-Sprinter | -1/Access_0 Resources | -11 -10 -10 -10 -9 -8 -8 -7 -7 -7 -7 -7 -6 -6 -6 -6 -6 -6 -5 -5 -5 -5 -5 -5 -4 -4 -4 -4 -4 -3 -3 -3 -2 -2 -2 -1 -1 -1 ----------- Run | Jun Mat Min Exi Min Mat Sto Fac Low Low Zio Dee Pro Fac Ext Cet Arc Hub Fac Was Fac Upp Upp Zhi Pro Fac Upp Upp War Pro Res Tes Res Qua Sec Acc Com Ac0 Matter Collected 7911 | 250 346 12 . 304 242 172 393 117 181 30 407 188 691 115 61 148 10 367 57 284 302 110 . 402 232 297 239 389 15 1 893 156 321 131 . 34 14 Remotely . | . . . . . . . . . . . . . . . . . . . . . . . . . . . . . . . . . . . . . . Salvage Created 10956 | . 679 41 . 522 285 49 402 . 29 . 753 439 1837 437 . 405 567 704 307 542 392 151 . 301 173 106 209 . 28 6 980 138 273 131 36 34 . Parts 548 | . 29 7 . 27 23 1 16 . 1 . 41 20 75 34 . 33 19 42 2 31 12 8 . 11 7 4 4 . 1 . 55 8 18 16 1 2 . Haulers Intercepted 12 | . . . . . . 1 4 . . . . . 1 . . . . . . 3 . . . . 2 . . . . . . 1 . . . . . Recyclers Shooed 7 | . 4 . . . 1 . . . . . . . 2 . . . . . . . . . . . . . . . . . . . . . . . . Parts Field Recycled 6 | . . . . . . . . . . . . . . . . . . . . . . . . . . . . . . 6 . . . . . . . Retrieved Matter 217 | . . . . . . . . . . . . . . . . . . . . . . . . . . . . . . 217 . . . . . . . Parts Self-Destructed 43 | . . . . . . . . 1 6 . . 13 . . . . . . . . 8 5 . . . 6 1 . 3 . . . . . . . . Prevented 2 | . . . . . . . . 2 . . . . . . . . . . . . . . . . . . . . . . . . . . . . . Kills | -11 -10 -10 -10 -9 -8 -8 -7 -7 -7 -7 -7 -6 -6 -6 -6 -6 -6 -5 -5 -5 -5 -5 -5 -4 -4 -4 -4 -4 -3 -3 -3 -2 -2 -2 -1 -1 -1 ------- Run | Jun Mat Min Exi Min Mat Sto Fac Low Low Zio Dee Pro Fac Ext Cet Arc Hub Fac Was Fac Upp Upp Zhi Pro Fac Upp Upp War Pro Res Tes Res Qua Sec Acc Com Ac0 Combat Hostiles Destroyed 223 | . 9 3 . 14 10 . 6 . . . 47 16 37 8 . 1 6 15 . 7 10 6 . . . 4 . . 4 1 9 5 3 2 . . . Melee 13 | . . . . . . . 1 . . . . . . . . . . . . 2 . . . . . 4 . . . . 3 . 1 2 . . . Guns 40 | . 9 3 . 7 . . . . . . 3 . . . . . 1 10 . 5 . . . . . . . . . . 2 . . . . . . Cannons 57 | . . . . . 8 . . . . . . 4 27 4 . 1 1 5 . . . . . . . . . . . 1 4 . 2 . . . . AOE 111 | . . . . 7 2 . 4 . . . 44 12 10 4 . . 3 . . . 10 6 . . . . . . 4 . . 5 . . . . . Classes Destroyed 19 | . 3 1 . 1 5 1 1 . . . 3 2 1 . . . . . . . 1 . . . . . . . . . . . . . . . . Worker 6 | . . . . . . . 3 . . . . . . . . . . . . 1 . . . . . . . . . . 2 . . . . . . Builder 9 | . . . . . 1 . 2 . . . . . . 1 . . 1 1 . 1 . . . . . . . . . . 2 . . . . . . Tunneler 4 | . . . . . 2 . . . . . . . 1 . . . . 1 . . . . . . . . . . . . . . . . . . . Hauler 12 | . . . . . . 1 4 . . . . . 1 . . . . . . 3 . . . . 2 . . . . . . 1 . . . . . Recycler 8 | . 4 . . . . . . . . . . . . . . . 1 1 . . . . . . . . . . . . 2 . . . . . . Operator 18 | . 2 . . . . . 1 . . . . . . 2 . 9 1 . . . . . . . . . . . . . 1 . . . 1 1 . Drone 2 | . . . . . . . . . . . . 2 . . . . . . . . . . . . . . . . . . . . . . . . . Watcher 4 | . . . . . 1 . . . . . . . . . . . 1 . . . . . . . . . . . . . . . 2 . . . . Swarmer 63 | . . 3 . . 3 . 3 . . . . 4 10 . . . 2 10 . 7 3 5 . . . 4 . . 4 . . 5 . . . . . Grunt 61 | . 9 . . 13 3 . 3 . . . . 9 11 7 . . 2 . . . 4 . . . . . . . . . . . . . . . . Brawler 7 | . . . . 1 . . . . . . . . 5 . . . . . . . 1 . . . . . . . . . . . . . . . . Duelist 2 | . . . . . . . . . . . . 1 . . . . . . . . 1 . . . . . . . . . . . . . . . . Sentry 14 | . . . . . 2 . . . . . . . 6 1 . 1 2 1 . . . . . . . . . . . 1 . . . . . . . Hunter 9 | . . . . . 2 . . . . . . . 1 . . . . . . . 1 . . . . . . . . . 4 . 1 . . . . Programmer 18 | . . . . . . . . . . . . . 4 . . . . 4 . . . 1 . . . . . . . . 5 . 2 2 . . . Z-Technician 5 | . . . . . . . . . . . 5 . . . . . . . . . . . . . . . . . . . . . . . . . . Z-Light 8 | . . . . . . . . . . . 8 . . . . . . . . . . . . . . . . . . . . . . . . . . Decomposer 6 | . . . . . . . . . 2 . . . . . . . . . . . . 3 . 1 . . . . . . . . . . . . . Samaritan 2 | . . . . . . . . . . . . . . . . . . . . . 1 . . . . . 1 . . . . . . . . . . Assembler 2 | . . . . . . . . . . . 2 . . . . . . . . . . . . . . . . . . . . . . . . . . Assembled 38 | . . . . . . . . . . . 38 . . . . . . . . . . . . . . . . . . . . . . . . . . Thug 1 | . . . . . . . . . . . . . . . . 1 . . . . . . . . . . . . . . . . . . . . . Best Kill Streak 37 | . 3 3 . 7 4 1 8 . . . 37 4 5 4 . 3 7 5 . 4 9 5 . . 1 4 . . 4 1 5 5 2 1 1 1 . Combat Bots Only 35 | . 2 3 . 7 3 . 3 . . . 35 4 4 4 . 1 4 5 . 4 9 5 . . . 4 . . 4 1 2 5 2 1 . . . Max Kills in Single Turn 21 | . 1 2 . 4 1 1 3 . 1 . 21 3 5 2 . 1 6 2 . 1 2 3 . 1 1 1 1 . 4 1 2 2 1 1 1 1 . Gunslinging . | . . . . . . . . . . . . . . . . . . . . . . . . . . . . . . . . . . . . . . Exploded 21 | . . . . 4 1 . 2 . . . 21 3 4 2 . . 3 . . . 2 3 . . . . . . 4 . . 2 . . . . . Melee 1 | . . . . . . . 1 . . . . . . . . . . . . 1 . . . . . 1 . . . . 1 . 1 1 . . . Uniques/NPCs Destroyed 1 | . . . . . . . . . . . 1 . . . . . . . . . . . . . . . . . . . . . . . . . . Z-Imprinter (-7/Deep Caves) Combat | -11 -10 -10 -10 -9 -8 -8 -7 -7 -7 -7 -7 -6 -6 -6 -6 -6 -6 -5 -5 -5 -5 -5 -5 -4 -4 -4 -4 -4 -3 -3 -3 -2 -2 -2 -1 -1 -1 -------- Run | Jun Mat Min Exi Min Mat Sto Fac Low Low Zio Dee Pro Fac Ext Cet Arc Hub Fac Was Fac Upp Upp Zhi Pro Fac Upp Upp War Pro Res Tes Res Qua Sec Acc Com Ac0 Damage Taken 19369 | . 508 18 . 386 1779 235 594 . 64 . 683 538 2964 530 28 76 1005 1347 . 923 542 129 . 62 298 714 . 142 356 1762 1542 262 428 378 222 221 633 Core 3223 | . 135 . . 31 434 71 225 . 53 . 91 72 458 37 . . 176 116 . 135 109 14 . 20 44 154 . 18 14 307 428 . 37 . 11 13 20 Absorbed by Shields 1958 | . . . . . . . . . . . . . 134 21 27 . . . . 19 42 . . . . . . 84 130 198 . 35 27 366 215 177 483 Reduced by Siege Mode 9 | . . . . . . . . . . . . . . . . . . . . . . . . . . . . . . . 9 . . . . . . Redirected to Shielding 717 | . . . . . . . 18 . 6 . 48 . . . . . . . . 101 110 15 . 31 15 134 . . . 41 43 . . 34 38 8 75 Regen/Repaired (Parts) 1925 | . . . . . . . 36 . . 62 . . . . . . . . . 713 . . . . . . . 197 . . . . 489 96 11 75 246 Core Remaining (%) 54 | 100 . . . 33 . 8 . . . . . 37 . . . . 21 . . . . . . 60 . . . . 80 . 36 . . 97 . . 75 Volleys Fired 554 | . 49 2 . 29 47 . 4 . . . 37 22 99 45 1 27 21 45 . 7 9 6 . . 6 . . 4 3 28 18 3 19 14 6 3 . Largest 2 | . 2 2 . 2 2 . 1 . . . 2 1 2 2 2 2 2 2 . 1 1 1 . . 1 . . 1 1 1 1 1 2 1 1 1 . Hottest 265 | . 46 46 . 63 96 . 45 . . . 133 45 50 68 50 105 265 105 . 35 80 80 . . 81 . . 80 20 113 100 52 163 113 113 113 . Shots Fired 794 | . 97 4 . 58 61 . 4 . . . 48 23 168 52 2 54 34 58 . 7 9 6 . . 6 . . 4 3 28 19 3 23 14 6 3 . Gun 281 | . 97 4 . 52 . . . . . . 35 . . . . 8 13 45 . 7 . . . . 6 . . . . . 10 . 4 . . . . Cannon 444 | . . . . . 55 . . . . . . 14 163 48 2 46 21 13 . . . . . . . . . 3 . 28 9 . 19 14 6 3 . Launcher 69 | . . . . 6 6 . 4 . . . 13 9 5 4 . . . . . . 9 6 . . . . . 1 3 . . 3 . . . . . Special . | . . . . . . . . . . . . . . . . . . . . . . . . . . . . . . . . . . . . . . Kinetic 278 | . 97 4 . 52 34 . . . . . . . . . . 5 . 38 . 7 . . . . . . . . . 18 19 . 4 . . . . Thermal 408 | . . . . . . . . . . . 26 14 163 48 2 49 34 20 . . . . . . 6 . . . . 4 . . 19 14 6 3 . Explosive 66 | . . . . 6 6 . 4 . . . 13 9 5 4 . . . . . . 9 6 . . . . . 1 . . . 3 . . . . . Electromagnetic 21 | . . . . . 21 . . . . . . . . . . . . . . . . . . . . . . . . . . . . . . . . Entropic 12 | . . . . . . . . . . . . . . . . . . . . . . . . . . . . 3 3 6 . . . . . . . Phasic 9 | . . . . . . . . . . . 9 . . . . . . . . . . . . . . . . . . . . . . . . . . Robot Hit Streak 19 | . 10 1 . 19 10 . 2 . . . 5 7 11 11 2 8 14 8 . 10 . 6 . . . . . 7 . 6 10 3 5 . . . . Robot Miss Streak 8 | . 3 1 . 2 2 . 3 . . . 5 4 3 2 . 3 3 3 . 1 . . . . . . . 1 2 . 8 . 1 . . . . Penetration Max 1 | . . . . . 1 . . . . . . . . . . . . 1 . 1 . . . . . . . . . . 1 . . . . . . Secondary Targets 3 | . 2 . . 1 . . . . . . . . . . . . . . . . . . . . . . . . . . . . . . . . . Max Gunslinging Chain 1 | . 1 . . 1 . . . . . . . . . . . . . . . . . . . . . . . . . . . . . . . . . Shots Hit Robots 529 | . 59 2 . 41 36 4 13 . 2 . 22 15 97 26 2 35 16 38 11 16 1 5 . 11 5 5 4 1 . 6 31 4 15 3 1 2 . Core Hits 541 | . 30 3 . 26 25 1 14 . 1 . 153 47 61 19 . 14 13 22 2 13 19 11 . 6 2 4 3 3 4 2 26 9 5 3 . . . Critical Kills 13 | . . . . 1 . . . . . . . . . . . . . 3 . . . . . . . . . . . . 9 . . . . . . Critical Parts Destroyed 26 | . . . . . . . 6 . . . . . . . . 1 . 3 . 2 . . . . . . . . . . 10 . 4 . . . . Critical Strikes 49 | . . . . 1 2 . 6 . . . . . . . . 1 . 6 1 3 . . . 1 . 1 . 1 . 2 19 1 4 . . . . Destroy 33 | . . . . 1 . . . . . . . . . . . 1 . 6 . 2 . . . . . . . . . . 19 . 4 . . . . Blast 2 | . . . . . 2 . . . . . . . . . . . . . . . . . . . . . . . . . . . . . . . . Smash 6 | . . . . . . . 6 . . . . . . . . . . . . . . . . . . . . . . . . . . . . . . Sever 1 | . . . . . . . . . . . . . . . . . . . . . . . . . . . . . . . . 1 . . . . . Impale 4 | . . . . . . . . . . . . . . . . . . . 1 1 . . . 1 . 1 . . . . . . . . . . . Sunder 3 | . . . . . . . . . . . . . . . . . . . . . . . . . . . . 1 . 2 . . . . . . . Melee Attacks 341 | . . . . . . 8 55 12 10 5 9 . . . . . . . 11 63 5 4 . 15 31 18 4 4 . . 24 13 23 12 3 6 6 Impact 89 | . . . . . . 8 55 11 10 5 . . . . . . . . . . . . . . . . . . . . . . . . . . . Slashing 90 | . . . . . . . . . . . 3 . . . . . . . . . . . . . . . . . . . 24 13 23 12 3 6 6 Piercing 161 | . . . . . . . . . . . 6 . . . . . . . 11 63 5 4 . 15 31 18 4 4 . . . . . . . . . Sneak Attacks 37 | . . . . . . 1 5 . 2 . 8 . . . . . . . . 5 1 3 . . 3 . 1 . . . 5 1 . . 1 1 . Combat Hostiles . | . . . . . . . . . . . . . . . . . . . . . . . . . . . . . . . . . . . . . . Follow-up Attacks . | . . . . . . . . . . . . . . . . . . . . . . . . . . . . . . . . . . . . . . Damage Inflicted 33238 | . 808 45 . 1128 1200 255 1173 . 235 . 4815 1837 5794 1617 76 1678 1388 1405 350 725 1112 789 . 881 327 183 332 253 642 422 1189 979 809 278 220 293 . Guns 3476 | . 808 45 . 595 . . . . . . 442 . . . . 77 238 951 . 199 . . . . . . . . . . 56 . 65 . . . . Cannons 10315 | . . . . . 761 . . . . . . 556 4526 1049 76 1601 404 454 . . . . . . . . . 138 . 422 103 . 225 . . . . Explosions 12123 | . . . . 533 439 . 511 . . . 3712 1281 1261 547 . . 746 . . . 1023 559 . . . . . 115 642 . . 754 . . . . . Melee 7211 | . . . . . . 246 662 . 235 . 661 . . . . . . . 350 526 89 230 . 838 327 183 332 . . . 1030 225 519 245 220 293 . Ramming 113 | . . . . . . 9 . . . . . . 7 21 . . . . . . . . . 43 . . . . . . . . . 33 . . . Kinetic 3278 | . 808 45 . 595 487 . . . . . . . . . . 51 . 869 . 199 . . . . . . . . . . 159 . 65 . . . . Thermal 9580 | . . . . . . . . . . . 343 556 4526 1049 76 1627 642 536 . . . . . . . . . . . . . . 225 . . . . Explosive 10735 | . . . . 533 439 . 511 . . . 3712 1281 1261 547 . . . . . . 1023 559 . . . . . 115 . . . 754 . . . . . Electromagnetic 1020 | . . . . . 274 . . . . . . . . . . . 746 . . . . . . . . . . . . . . . . . . . . Impact 1143 | . . . . . . 246 662 . 235 . . . . . . . . . . . . . . . . . . . . . . . . . . . . Slashing 2764 | . . . . . . . . . . . 232 . . . . . . . . . . . . . . . . . . . 1030 225 519 245 220 293 . Piercing 3304 | . . . . . . . . . . . 429 . . . . . . . 350 526 89 230 . 838 327 183 332 . . . . . . . . . . Entropic 1202 | . . . . . . . . . . . . . . . . . . . . . . . . . . . . 138 642 422 . . . . . . . Phasic 99 | . . . . . . . . . . . 99 . . . . . . . . . . . . . . . . . . . . . . . . . . Highest Corruption 18 | . . . . . 2 4 2 . . . 2 2 7 . 7 6 6 7 7 1 . 1 1 1 . . . . . 1 18 . . 2 . . . Average Corruption 3 | . . . . . 2 3 1 . . . 2 2 4 . 6 2 3 2 2 1 . 1 1 1 . . . . . 1 7 . . 1 . . . Corruption Purged 43 | . . . . . . . 4 . . . . . 9 . 1 21 . 1 6 1 . . . . . . . . . . . . . . . . . Corruption Blocked 1 | . . . . . . . . . . . . . . . . . . . . . . . . . . . . . . . . 1 . . . . . Effects 135 | . . . . . 8 3 7 . . . 13 8 39 . 7 5 1 6 3 1 . 1 1 3 . . . . . . 19 . . 10 . . . Message Errors 39 | . . . . . . 1 5 . . . 2 3 11 . 2 2 . 1 1 . . . . 2 . . . . . . 5 . . 4 . . . Matter Fused 27 | . . . . . 1 1 . . . . 3 1 8 . 2 1 . 3 1 1 . . 1 . . . . . . . 1 . . 3 . . . Heat Flow Errors 16 | . . . . . 1 . . . . . 2 . 5 . 1 . 1 1 . . . . . . . . . . . . 3 . . 2 . . . Energy Discharges 18 | . . . . . 3 . 1 . . . 4 2 4 . . . . 1 . . . . . . . . . . . . 3 . . . . . . Parts Rejected 2 | . . . . . 1 . . . . . . . 1 . . . . . . . . . . . . . . . . . . . . . . . . Parts Fused 1 | . . . . . . . . . . . . . . . . . . . . . . . . . . . . . . . 1 . . . . . . Data Loss (minor) 19 | . . . . . 2 1 1 . . . 2 1 5 . 1 1 . . 1 . . 1 . 1 . . . . . . 2 . . . . . . Data Loss (major) 7 | . . . . . . . . . . . . . 2 . 1 1 . . . . . . . . . . . . . . 2 . . 1 . . . Misfires 4 | . . . . . . . . . . . . 1 2 . . . . . . . . . . . . . . . . . 1 . . . . . . Misdirections 1 | . . . . . . . . . . . . . . . . . . . . . . . . . . . . . . . 1 . . . . . . Weapon Failures 1 | . . . . . . . . . . . . . 1 . . . . . . . . . . . . . . . . . . . . . . . . Overload Shots 2 | . . . . . . . . . . . . . . . . . 2 . . . . . . . . . . . . . . . . . . . . Overflow Damage 2632 | . . . . . 1 60 515 . 93 . 160 23 197 15 . 112 88 20 . . 25 3 . 377 35 16 68 . 40 . 229 62 115 . 175 203 . Projectiles 402 | . . . . . 1 . . . . . . . 147 6 . 112 62 20 . . . . . . . . . . . . . . 54 . . . . Explosions 353 | . . . . . . . 40 . . . 75 23 50 9 . . 26 . . . 25 3 . . . . . . 40 . . 62 . . . . . Melee 1877 | . . . . . . 60 475 . 93 . 85 . . . . . . . . . . . . 377 35 16 68 . . . 229 . 61 . 175 203 . Knockbacks 10 | . . . . . 2 . 2 . . . . . . . . . . . . . . . . . . . . . . . 6 . . . . . . Impact 2 | . . . . . . . 2 . . . . . . . . . . . . . . . . . . . . . . . . . . . . . . Kinetic 7 | . . . . . 2 . . . . . . . . . . . . . . . . . . . . . . . . . 5 . . . . . . Secondary 1 | . . . . . . . . . . . . . . . . . . . . . . . . . . . . . . . 1 . . . . . . Self-Inflicted Damage 688 | . . . . 29 15 9 . . . . . 129 225 . . . 102 . . . . . . 21 . . . . 142 . . . . 16 . . . Shots 21 | . . . . 1 1 . . . . . . 7 10 . . . 1 . . . . . . . . . . . 1 . . . . . . . . Rammed 4 | . . . . 1 1 . . . . . . . . . . . . . . . . . . 1 . . . . . . . . . 1 . . . Targets Rammed 8 | . . . . 1 1 . . . . . . . 1 3 . . . . . . . . . 1 . . . . . . . . . 1 . . . Kicked 4 | . . . . . . . . . . . . . 1 3 . . . . . . . . . . . . . . . . . . . . . . . Crushed . | . . . . . . . . . . . . . . . . . . . . . . . . . . . . . . . . . . . . . . Highest Temperature 685 | . 8 . . 22 177 3 18 . . . 314 68 257 10 183 . 375 90 . 183 247 76 . 132 307 210 220 276 . 435 685 235 231 181 178 178 . Average Temperature 82 | . 3 . . 10 57 3 9 . . . 78 17 71 3 99 . 105 42 . 52 98 32 . 66 99 80 100 103 . 93 199 20 51 80 76 97 . Received Heat Transfer 2844 | . 282 . . 237 135 99 81 . 6 . 90 184 709 210 4 9 231 9 . 125 88 9 . . 66 12 . 9 . 175 . 12 4 16 . 36 6 Effects 20 | . . . . . . . . . . . . . . . . . . . . . 1 . . . 1 . . 1 . 2 15 . . . . . . Shutdowns 5 | . . . . . . . . . . . . . . . . . . . . . . . . . . . . . . . 5 . . . . . . Energy Bleed 7 | . . . . . . . . . . . . . . . . . . . . . . . . . 1 . . 1 . 1 4 . . . . . . Interference 1 | . . . . . . . . . . . . . . . . . . . . . 1 . . . . . . . . . . . . . . . . Matter Decay 1 | . . . . . . . . . . . . . . . . . . . . . . . . . . . . . . 1 . . . . . . . Short Circuit 1 | . . . . . . . . . . . . . . . . . . . . . . . . . . . . . . . 1 . . . . . . Damage (minor) 1 | . . . . . . . . . . . . . . . . . . . . . . . . . . . . . . . 1 . . . . . . Damage (major) 3 | . . . . . . . . . . . . . . . . . . . . . . . . . . . . . . . 3 . . . . . . Damage (core) 1 | . . . . . . . . . . . . . . . . . . . . . . . . . . . . . . . 1 . . . . . . Siege Activations 2 | . . . . . . . . . . . . . . . . . . . . . . . . . . . . . . . 2 . . . . . . Total Turns 19 | . . . . . . . . . . . . . . . . . . . . . . . . . . . . . . . 19 . . . . . . Longest Duration 12 | . . . . . . . . . . . . . . . . . . . . . . . . . . . . . . . 12 . . . . . . Robots Corrupted 1 | . . . . . . . . . . . . . . . . . 1 . . . . . . . . . . . . . . . . . . . . Combat Hostiles 1 | . . . . . . . . . . . . . . . . . 1 . . . . . . . . . . . . . . . . . . . . Parts Fried 13 | . . . . . 2 . 6 . . . . . . . . . 5 . . . . . . . . . . . . . . . . . . . . Impact Corruptions 25 | . . . . . . 1 14 . 5 . . . . . . . . . . . . . . 5 . . . . . . . . . . . . . Robots Melted . | . . . . . . . . . . . . . . . . . . . . . . . . . . . . . . . . . . . . . . Combat Hostiles . | . . . . . . . . . . . . . . . . . . . . . . . . . . . . . . . . . . . . . . Parts Melted 3 | . . . . . . . . . . . . . 2 . . . . 1 . . . . . . . . . . . . . . . . . . . Heat Transferred 5736 | . . . . . . . . . . . 370 325 2450 625 50 912 508 311 . . . . . . . . . . . . . . 185 . . . . Parts Sabotaged . | . . . . . . . . . . . . . . . . . . . . . . . . . . . . . . . . . . . . . . Parts Stolen . | . . . . . . . . . . . . . . . . . . . . . . . . . . . . . . . . . . . . . . Parts Stripped . | . . . . . . . . . . . . . . . . . . . . . . . . . . . . . . . . . . . . . . Power Chain Reactions . | . . . . . . . . . . . . . . . . . . . . . . . . . . . . . . . . . . . . . . Missiles Intercepted 1 | . . . . . . . . . . . . . . . . . . . . . . . . . . . . 1 . . . . . . . . . Alert | -11 -10 -10 -10 -9 -8 -8 -7 -7 -7 -7 -7 -6 -6 -6 -6 -6 -6 -5 -5 -5 -5 -5 -5 -4 -4 -4 -4 -4 -3 -3 -3 -2 -2 -2 -1 -1 -1 ------- Run | Jun Mat Min Exi Min Mat Sto Fac Low Low Zio Dee Pro Fac Ext Cet Arc Hub Fac Was Fac Upp Upp Zhi Pro Fac Upp Upp War Pro Res Tes Res Qua Sec Acc Com Ac0 Peak Influence 674 | . 178 110 . 195 339 406 672 . . . . . 674 543 487 258 584 606 186 384 . . . . 235 . . . . 395 288 247 538 309 254 625 . Initial 329 | . . 25 . . 42 117 179 . . . . . 238 329 214 194 . 285 186 130 . . . . . . . . . 74 87 94 147 9 30 162 . Average 179 | . 73 108 . 64 128 247 349 . . . . . 312 164 378 44 81 456 186 153 . . . . 93 . . . . 153 163 114 185 128 109 438 . Maximum Alert Level 2 | . . . . . 1 2 2 . . . . . 2 2 2 1 2 2 . 1 . . . . 1 . . . . 1 1 1 2 1 1 2 . Low Security (%) 60 | 100 100 100 . 100 85 31 25 . . . . . 5 64 . 86 87 . 100 66 . . . . 87 . . . . 79 59 96 51 74 87 6 . Level 1 27 | . . . . . 14 61 27 . . . . . 72 27 66 13 12 16 . 33 . . . . 12 . . . . 20 40 3 36 25 12 40 . Level 2 11 | . . . . . . 6 46 . . . . . 21 8 33 . . 83 . . . . . . . . . . . . . . 12 . . 53 . Level 3 . | . . . . . . . . . . . . . . . . . . . . . . . . . . . . . . . . . . . . . . Level 4 . | . . . . . . . . . . . . . . . . . . . . . . . . . . . . . . . . . . . . . . Level 5 . | . . . . . . . . . . . . . . . . . . . . . . . . . . . . . . . . . . . . . . High Security . | . . . . . . . . . . . . . . . . . . . . . . . . . . . . . . . . . . . . . . Max Security . | . . . . . . . . . . . . . . . . . . . . . . . . . . . . . . . . . . . . . . Squads Dispatched 61 | . 3 . . . 2 1 6 . . . . . 11 2 . . 2 2 . 7 . . . . 2 . . . . 8 5 . 4 3 1 2 . Investigation 21 | . 1 . . . . . 3 . . . . . 3 1 . . 1 . . 6 . . . . 2 . . . . 3 1 . . . . . . Extermination 15 | . . . . . . . 2 . . . . . 3 . . . 1 2 . 1 . . . . . . . . . 2 1 . 2 1 . . . Reinforcement 17 | . 2 . . . 2 . 1 . . . . . 2 1 . . . . . . . . . . . . . . . . 3 . 2 2 1 1 . Assault 1 | . . . . . . . . . . . . . . . . . . . . . . . . . . . . . . . . . . . . 1 . Garrison 7 | . . . . . . 1 . . . . . . 3 . . . . . . . . . . . . . . . . 3 . . . . . . . Intercept . | . . . . . . . . . . . . . . . . . . . . . . . . . . . . . . . . . . . . . . Searches Triggered 1 | . . . . . . . 1 . . . . . . . . . . . . . . . . . . . . . . . . . . . . . . Construction Impeded 2 | . . . . . . . 1 . . . . . 1 . . . . . . . . . . . . . . . . . . . . . . . . Haulers Reinforced 1 | . . . . . . . . . . . . . . . . . . . . . . . . . . . . . . . 1 . . . . . . Active Scanning Responses . | . . . . . . . . . . . . . . . . . . . . . . . . . . . . . . . . . . . . . . Cargo Convoy Interrupts . | . . . . . . . . . . . . . . . . . . . . . . . . . . . . . . . . . . . . . . Stealth | -11 -10 -10 -10 -9 -8 -8 -7 -7 -7 -7 -7 -6 -6 -6 -6 -6 -6 -5 -5 -5 -5 -5 -5 -4 -4 -4 -4 -4 -3 -3 -3 -2 -2 -2 -1 -1 -1 --------- Run | Jun Mat Min Exi Min Mat Sto Fac Low Low Zio Dee Pro Fac Ext Cet Arc Hub Fac Was Fac Upp Upp Zhi Pro Fac Upp Upp War Pro Res Tes Res Qua Sec Acc Com Ac0 Distress Signals 31 | . 2 . . . 5 . 5 . . . . . . . 1 . 1 . . 3 . . . . 2 . . 2 . 1 . 4 1 2 2 . . Communications Jammed . | . . . . . . . . . . . . . . . . . . . . . . . . . . . . . . . . . . . . . . Distress Signals . | . . . . . . . . . . . . . . . . . . . . . . . . . . . . . . . . . . . . . . Times Spotted 606 | . 21 1 . 17 24 12 54 . 5 . 47 14 41 25 4 16 16 17 . 41 27 10 . 1 20 10 . 9 17 50 12 13 13 24 13 14 18 Peak Tracking Total 37 | . 5 1 . 8 8 9 8 . 3 . 37 4 4 4 4 2 11 5 . 7 12 7 . 2 8 5 . 8 9 25 2 5 2 11 4 6 17 Tactical Retreats 90 | . . . . 1 6 1 17 . 1 . 1 . 2 . . . 1 . . 16 7 2 . . 7 3 . 1 1 5 . 1 3 8 3 3 . Traps | -11 -10 -10 -10 -9 -8 -8 -7 -7 -7 -7 -7 -6 -6 -6 -6 -6 -6 -5 -5 -5 -5 -5 -5 -4 -4 -4 -4 -4 -3 -3 -3 -2 -2 -2 -1 -1 -1 ------- Run | Jun Mat Min Exi Min Mat Sto Fac Low Low Zio Dee Pro Fac Ext Cet Arc Hub Fac Was Fac Upp Upp Zhi Pro Fac Upp Upp War Pro Res Tes Res Qua Sec Acc Com Ac0 Traps Triggered 21 | . 1 . . . 1 1 1 . . . . . 6 2 . . . 1 . 1 . . . . . . . . . 4 2 . . 1 . . . Indirectly . | . . . . . . . . . . . . . . . . . . . . . . . . . . . . . . . . . . . . . . Trap Hack Attempts 63 | . . . . . . . 63 . . . . . . . . . . . . . . . . . . . . . . . . . . . . . . Triggered . | . . . . . . . . . . . . . . . . . . . . . . . . . . . . . . . . . . . . . . Disarmed . | . . . . . . . . . . . . . . . . . . . . . . . . . . . . . . . . . . . . . . Reprogrammed 34 | . . . . . . . 20 . . . . . . . . . . . . 10 . . . . 4 . . . . . . . . . . . . Reused 16 | . . . . . . . 4 . . . 7 . . . . . . . . 1 . . . . . . . 4 . . . . . . . . . Traps Extracted 20 | . . . . . . . 10 . . . 1 . . . . . . . . 3 . . . . . . . 6 . . . . . . . . . Installed 14 | . . . . . . . . . . . 10 . . . . . . . . . . . . . . . . 4 . . . . . . . . . Triggered 26 | . . . . . . . 5 3 . . . . . . . . . . . 1 . . . . . . . 17 . . . . . . . . . Most Traps Carried 10 | . . . . . . . 10 10 10 10 10 1 1 1 1 1 1 1 1 4 4 4 4 4 4 4 4 6 6 6 6 6 6 6 6 6 6 Machines | -11 -10 -10 -10 -9 -8 -8 -7 -7 -7 -7 -7 -6 -6 -6 -6 -6 -6 -5 -5 -5 -5 -5 -5 -4 -4 -4 -4 -4 -3 -3 -3 -2 -2 -2 -1 -1 -1 ---------- Run | Jun Mat Min Exi Min Mat Sto Fac Low Low Zio Dee Pro Fac Ext Cet Arc Hub Fac Was Fac Upp Upp Zhi Pro Fac Upp Upp War Pro Res Tes Res Qua Sec Acc Com Ac0 Machines Disabled 61 | . . 1 . . . 3 3 . . 3 2 . 3 2 . 3 8 . . 1 . . . . . . . 1 . . 5 . 6 10 3 2 5 Max in Single Turn 7 | . . 1 . . . 1 2 . . 1 1 . 1 . . 1 7 . . 1 . . . . . . . 1 . . 1 . 1 1 1 2 1 Garrison Access 12 | . . . . . . . 3 . . . . . 1 . . . 1 . . 2 . . . . 1 . . . . 1 . . 1 1 1 . . Phase Generator 1 | . . . . . . . . . . . . . . . . . . . . . . . . . . . . . . . . . . . . 1 . Network Hub 2 | . . . . . . . . . . . . . . . . . 2 . . . . . . . . . . . . . . . . . . . . Energy Cycler 1 | . . . . . . . . . . . . . . 1 . . . . . . . . . . . . . . . . . . . . . . . Machines Repaired 1 | . . . . . . . . . . . . . . . . . 1 . . . . . . . . . . . . . . . . . . . . Machines Sabotaged . | . . . . . . . . . . . . . . . . . . . . . . . . . . . . . . . . . . . . . . Overloaded Fab Kills . | . . . . . . . . . . . . . . . . . . . . . . . . . . . . . . . . . . . . . . Hacking | -11 -10 -10 -10 -9 -8 -8 -7 -7 -7 -7 -7 -6 -6 -6 -6 -6 -6 -5 -5 -5 -5 -5 -5 -4 -4 -4 -4 -4 -3 -3 -3 -2 -2 -2 -1 -1 -1 --------- Run | Jun Mat Min Exi Min Mat Sto Fac Low Low Zio Dee Pro Fac Ext Cet Arc Hub Fac Was Fac Upp Upp Zhi Pro Fac Upp Upp War Pro Res Tes Res Qua Sec Acc Com Ac0 Machines Accessed 156 | . 2 . 1 . . 4 25 1 . 1 . . 15 15 1 . 4 1 . 22 . . 4 . 7 . . 3 . 7 6 2 12 12 6 5 . Terminals 97 | . 2 . . . . 4 15 . . . . . 11 15 1 . 3 1 . 8 . . . . 4 . . . . 2 3 2 8 10 4 4 . Fabricators 18 | . . . . . . . 2 . . . . . 3 . . . . . . 6 . . . . 2 . . . . 3 2 . . . . . . Repair Stations 10 | . . . . . . . 2 . . . . . . . . . . . . 5 . . . . . . . . . . . . 2 . . 1 . Recycling Units 3 | . . . . . . . 2 . . . . . . . . . . . . . . . . . . . . . . 1 . . . . . . . Scanalyzers 4 | . . . . . . . . . . . . . . . . . . . . 1 . . . . . . . . . . 1 . 1 1 . . . Garrison Access 14 | . . . . . . . 4 . . . . . 1 . . . 1 . . 2 . . . . 1 . . . . 1 . . 1 1 2 . . Total Hacks 613 | . 8 . 1 . . 7 74 1 . 3 . . 38 30 1 . 13 12 . 108 . . 17 . 39 . . 6 . 29 35 9 63 56 26 37 . Successful 368 | . 5 . 1 . . 4 47 1 . 3 . . 14 16 1 . 9 3 . 95 . . 17 . 27 . . 6 . 22 21 4 34 23 4 11 . Failed 243 | . 3 . . . . 3 27 . . . . . 24 14 . . 4 8 . 12 . . . . 12 . . . . 7 14 5 29 33 22 26 . Catastrophic 56 | . 1 . . . . . 10 . . . . . 6 2 . . . 3 . 1 . . . . 1 . . . . . 2 2 5 7 10 6 . Database Lockouts 2 | . . . . . . . . . . . . . . . . . . 1 . 1 . . . . . . . . . . . . . . . . . Manual 346 | . 5 . . . . 4 42 . . . . . 24 15 1 . 6 14 . 51 . . . . 31 . . . . 20 13 9 44 32 8 27 . Terminals 415 | . 8 . . . . 7 50 . . . . . 26 30 1 . 10 12 . 54 . . . . 29 . . . . 14 18 9 50 43 20 34 . Fabricators 63 | . . . . . . . 5 . . . . . 11 . . . . . . 18 . . . . 8 . . . . 9 12 . . . . . . Repair Stations 30 | . . . . . . . 3 . . . . . . . . . . . . 14 . . . . . . . . . . . . 10 . . 3 . Recycling Units 15 | . . . . . . . 10 . . . . . . . . . . . . . . . . . . . . . . 5 . . . . . . . Scanalyzers 34 | . . . . . . . . . . . . . . . . . . . . 20 . . . . . . . . . . 5 . 2 7 . . . Garrison Access 28 | . . . . . . . 6 . . . . . 1 . . . 3 . . 2 . . . . 2 . . . . 1 . . 1 6 6 . . Terminal Hacks 158 | . 2 . 1 . . 3 20 1 . 3 . . 5 14 1 . 5 2 . 32 . . 17 . 12 . . 6 . 6 4 1 10 9 1 3 . Record 16 | . . . 1 . . . . . . . . . . . . . . . . 2 . . 5 . . . . 4 . . 1 . . 3 . . . Part Schematic 21 | . . . . . . 1 2 . . 3 . . 2 . . . . 2 . 2 . . 4 . 5 . . . . . . . . . . . . Robot Schematic 1 | . . . . . . . 1 . . . . . . . . . . . . . . . . . . . . . . . . . . . . . . Robot Analysis 10 | . 1 . . . . . . . . . . . . . . . 1 . . 1 . . 4 . . . . . . . . . 1 . . 2 . Prototype ID Bank 4 | . . . . . . . . . . . . . . . . . . . . . . . 4 . . . . . . . . . . . . . . Open Door 17 | . . . . . . 2 . 1 . . . . 1 7 1 . . . . . . . . . . . . 2 . . . . . 3 . . . Level Access Points 1 | . . . . . . . . . . . . . . . . . 1 . . . . . . . . . . . . . . . . . . . . Branch Access Points 8 | . . . . . . . 1 . . . . . 1 . . . . . . 2 . . . . 1 . . . . 1 . 1 . . 1 . . Machine Index 2 | . . . . . . . 1 . . . . . . . . . . . . 1 . . . . . . . . . . . . . . . . . Terminal Index 1 | . . . . . . . . . . . . . . . . . . . . . . . . . . . . . . . . . . . . 1 . Garrison Index 1 | . . . . . . . . . . . . . . . . . 1 . . . . . . . . . . . . . . . . . . . . Alert Level 10 | . . . . . . . 2 . . . . . . 1 . . 1 . . 3 . . . . . . . . . . 1 . 2 . . . . Unreport Threat 19 | . . . . . . . 2 . . . . . . 4 . . . . . 2 . . . . 2 . . . . 3 1 . 3 2 . . . Locate Traps 11 | . . . . . . . 5 . . . . . . 1 . . 1 . . 3 . . . . 1 . . . . . . . . . . . . Reprogram Traps 7 | . . . . . . . 4 . . . . . . . . . . . . 2 . . . . 1 . . . . . . . . . . . . Security Status 2 | . . . . . . . . . . . . . . . . . . . . 2 . . . . . . . . . . . . . . . . . Patrol Status 2 | . . . . . . . . . . . . . . . . . . . . 2 . . . . . . . . . . . . . . . . . Transport Status 1 | . . . . . . . 1 . . . . . . . . . . . . . . . . . . . . . . . . . . . . . . Recall Investigation 5 | . . . . . . . . . . . . . 1 1 . . . . . 3 . . . . . . . . . . . . . . . . . Recall Extermination 3 | . . . . . . . . . . . . . . . . . . . . 1 . . . . . . . . . 1 . . 1 . . . . Hauler Manifests 4 | . 1 . . . . . 1 . . . . . . . . . . . . 1 . . . . 1 . . . . . . . . . . . . Registered Components 1 | . . . . . . . . . . . . . . . . . . . . 1 . . . . . . . . . . . . . . . . . Registered Prototypes 1 | . . . . . . . . . . . . . . . . . . . . 1 . . . . . . . . . . . . . . . . . Zone Layout 10 | . . . . . . . . . . . . . . . . . . . . 3 . . . . 1 . . . . 1 1 . 3 1 . . . Fabricator Hacks 39 | . . . . . . . 4 . . . . . 4 . . . . . . 10 . . . . 6 . . . . 6 9 . . . . . . Network Status 2 | . . . . . . . . . . . . . 1 . . . . . . . . . . . . . . . . . 1 . . . . . . Load Schematic 24 | . . . . . . . 3 . . . . . 2 . . . . . . 7 . . . . 4 . . . . 4 4 . . . . . . Build 13 | . . . . . . . 1 . . . . . 1 . . . . . . 3 . . . . 2 . . . . 2 4 . . . . . . Repair Station Hacks 24 | . . . . . . . 2 . . . . . . . . . . . . 14 . . . . . . . . . . . . 8 . . . . Scan Component 12 | . . . . . . . 1 . . . . . . . . . . . . 7 . . . . . . . . . . . . 4 . . . . Repair 12 | . . . . . . . 1 . . . . . . . . . . . . 7 . . . . . . . . . . . . 4 . . . . Recycling Unit Hacks 8 | . . . . . . . 6 . . . . . . . . . . . . . . . . . . . . . . 2 . . . . . . . Recycle Component 1 | . . . . . . . 1 . . . . . . . . . . . . . . . . . . . . . . . . . . . . . . Process 1 | . . . . . . . . . . . . . . . . . . . . . . . . . . . . . . 1 . . . . . . . Report Inventory 1 | . . . . . . . 1 . . . . . . . . . . . . . . . . . . . . . . . . . . . . . . Retrieve Matter 1 | . . . . . . . . . . . . . . . . . . . . . . . . . . . . . . 1 . . . . . . . Retrieve Components 4 | . . . . . . . 4 . . . . . . . . . . . . . . . . . . . . . . . . . . . . . . Scanalyzer 26 | . . . . . . . . . . . . . . . . . . . . 19 . . . . . . . . . . 1 . 1 5 . . . Insert Component 14 | . . . . . . . . . . . . . . . . . . . . 7 . . . . . . . . . . 1 . 1 5 . . . Analyze 12 | . . . . . . . . . . . . . . . . . . . . 12 . . . . . . . . . . . . . . . . . Garrison Access Hacks 12 | . . . . . . . 3 . . . . . 1 . . . 1 . . 2 . . . . 1 . . . . 1 . . 1 1 1 . . Seal Access 12 | . . . . . . . 3 . . . . . 1 . . . 1 . . 2 . . . . 1 . . . . 1 . . 1 1 1 . . Unauthorized Hacks 101 | . 3 . . . . 1 12 . . . . . 4 2 . . 3 1 . 18 . . . . 8 . . . . 7 7 3 14 8 2 8 . Terminals 75 | . 3 . . . . 1 8 . . . . . 2 2 . . 3 1 . 10 . . . . 6 . . . . 3 3 3 13 7 2 8 . Track 25 | . . . . . . . . . . . . . . . . . . . . 5 . . . . 2 . . . . 2 3 1 5 3 1 3 . Assimilate 10 | . . . . . . . 4 . . . . . . . . . . . . 1 . . . . 1 . . . . . . . 3 1 . . . Botnet 29 | . 2 . . . . 1 2 . . . . . 2 2 . . 2 1 . 2 . . . . 2 . . . . 1 . 1 4 2 1 4 . Detonate 1 | . . . . . . . 1 . . . . . . . . . . . . . . . . . . . . . . . . . . . . . . Operators 9 | . 1 . . . . . 1 . . . . . . . . . . . . 2 . . . . 1 . . . . . . 1 1 1 . 1 . Sabotage 1 | . . . . . . . . . . . . . . . . . 1 . . . . . . . . . . . . . . . . . . . . Fabricators 19 | . . . . . . . 1 . . . . . 2 . . . . . . 8 . . . . 2 . . . . 3 3 . . . . . . Report 1 | . . . . . . . . . . . . . . . . . . . . . . . . . . . . . . . 1 . . . . . . Prioritize 3 | . . . . . . . . . . . . . . . . . . . . 2 . . . . . . . . . . 1 . . . . . . Liberate 1 | . . . . . . . . . . . . . 1 . . . . . . . . . . . . . . . . . . . . . . . . Haulers 2 | . . . . . . . . . . . . . . . . . . . . 1 . . . . . . . . . . 1 . . . . . . Recompile 12 | . . . . . . . 1 . . . . . 1 . . . . . . 5 . . . . 2 . . . . 3 . . . . . . . Repair Stations . | . . . . . . . . . . . . . . . . . . . . . . . . . . . . . . . . . . . . . . Recycling Units 4 | . . . . . . . 3 . . . . . . . . . . . . . . . . . . . . . . 1 . . . . . . . Monitor 1 | . . . . . . . 1 . . . . . . . . . . . . . . . . . . . . . . . . . . . . . . Reject 1 | . . . . . . . 1 . . . . . . . . . . . . . . . . . . . . . . . . . . . . . . Recyclers 2 | . . . . . . . 1 . . . . . . . . . . . . . . . . . . . . . . 1 . . . . . . . Scanalyzers 3 | . . . . . . . . . . . . . . . . . . . . . . . . . . . . . . . 1 . 1 1 . . . Researchers 3 | . . . . . . . . . . . . . . . . . . . . . . . . . . . . . . . 1 . 1 1 . . . Garrison Access . | . . . . . . . . . . . . . . . . . . . . . . . . . . . . . . . . . . . . . . Data Cores Recovered 3 | . . . . . . . . . . . . . . 2 . . 1 . . . . . . . . . . . . . . . . . . . . Used . | . . . . . . . . . . . . . . . . . . . . . . . . . . . . . . . . . . . . . . Hacking Detections 99 | . 2 . . . . 2 18 . . . . . 13 12 1 . 3 1 . 7 . . . . 4 . . . . 3 4 2 9 8 5 5 . Full Trace Events 6 | . . . . . . . 2 . . . . . 2 1 . . . . . 1 . . . . . . . . . . . . . . . . . Feedback Events . | . . . . . . . . . . . . . . . . . . . . . . . . . . . . . . . . . . . . . . Feedback Blocked . | . . . . . . . . . . . . . . . . . . . . . . . . . . . . . . . . . . . . . . Robot Schematics Acquired 5 | . . . . . . . 1 . . 4 . . . . . . . . . . . . . . . . . . . . . . . . . . . Robots Built . | . . . . . . . . . . . . . . . . . . . . . . . . . . . . . . . . . . . . . . Authchips . | . . . . . . . . . . . . . . . . . . . . . . . . . . . . . . . . . . . . . . Time . | . . . . . . . . . . . . . . . . . . . . . . . . . . . . . . . . . . . . . . Total Robot Build Rating . | . . . . . . . . . . . . . . . . . . . . . . . . . . . . . . . . . . . . . . Part Schematics Acquired 42 | . . . . . . 1 2 . . 15 . . 2 . . . . 2 . 9 . . 4 . 5 . . . . . . . 2 . . . . Parts Built 21 | . . . . . . . 2 . . . . . 2 . . . . . . 4 . . . . 4 . . . . 2 7 . . . . . . Authchips 12 | . . . . . . . 1 . . . . . 1 . . . . . . 2 . . . . 2 . . . . 2 4 . . . . . . Time 690 | . . . . . . . 42 . . . . . 42 . . . . . . 194 . . . . 138 . . . . 112 162 . . . . . . Total Part Build Rating 150 | . . . . . . . 8 . . . . . 8 . . . . . . 29 . . . . 36 . . . . 12 57 . . . . . . Parts Repaired 12 | . . . . . . . 1 . . . . . . . . . . . . 7 . . . . . . . . . . . . 4 . . . . Time 701 | . . . . . . . 70 . . . . . . . . . . . . 489 . . . . . . . . . . . . 142 . . . . Parts Recycled 1 | . . . . . . . 1 . . . . . . . . . . . . . . . . . . . . . . . . . . . . . . Recycled Matter 18 | . . . . . . . . . . . . . . . . . . . . . . . . . . . . . . 18 . . . . . . . Retrieved Matter 18 | . . . . . . . . . . . . . . . . . . . . . . . . . . . . . . 18 . . . . . . . Retrieved Components 9 | . . . . . . . 9 . . . . . . . . . . . . . . . . . . . . . . . . . . . . . . Parts Scanalyzed 7 | . . . . . . . . . . . . . . . . . . . . 7 . . . . . . . . . . . . . . . . . Part Schematics Acquired 7 | . . . . . . . . . . . . . . . . . . . . 7 . . . . . . . . . . . . . . . . . Parts Damaged 2 | . . . . . . . . . . . . . . . . . . . . 2 . . . . . . . . . . . . . . . . . Bothacking | -11 -10 -10 -10 -9 -8 -8 -7 -7 -7 -7 -7 -6 -6 -6 -6 -6 -6 -5 -5 -5 -5 -5 -5 -4 -4 -4 -4 -4 -3 -3 -3 -2 -2 -2 -1 -1 -1 ------------ Run | Jun Mat Min Exi Min Mat Sto Fac Low Low Zio Dee Pro Fac Ext Cet Arc Hub Fac Was Fac Upp Upp Zhi Pro Fac Upp Upp War Pro Res Tes Res Qua Sec Acc Com Ac0 Used RIF Installer . | . . . . . . . . . . . . . . . . . . . . . . . . . . . . . . . . . . . . . . Robots Hacked . | . . . . . . . . . . . . . . . . . . . . . . . . . . . . . . . . . . . . . . Non-combat . | . . . . . . . . . . . . . . . . . . . . . . . . . . . . . . . . . . . . . . Combat . | . . . . . . . . . . . . . . . . . . . . . . . . . . . . . . . . . . . . . . Robot Hacks Applied . | . . . . . . . . . . . . . . . . . . . . . . . . . . . . . . . . . . . . . . Relay Couplers Released . | . . . . . . . . . . . . . . . . . . . . . . . . . . . . . . . . . . . . . . Fabnet Peak Effective % . | . . . . . . . . . . . . . . . . . . . . . . . . . . . . . . . . . . . . . . Robots Rewired 11 | . . . . . . . . . . . . . . 6 . . . . . . . . . . . . . 5 . . . . . . . . . Allies Hacked 1 | . . . . . . . . . . . . . 1 . . . . . . . . . . . . . . . . . . . . . . . . Hacks Repelled . | . . . . . . . . . . . . . . . . . . . . . . . . . . . . . . . . . . . . . . Allies | -11 -10 -10 -10 -9 -8 -8 -7 -7 -7 -7 -7 -6 -6 -6 -6 -6 -6 -5 -5 -5 -5 -5 -5 -4 -4 -4 -4 -4 -3 -3 -3 -2 -2 -2 -1 -1 -1 -------- Run | Jun Mat Min Exi Min Mat Sto Fac Low Low Zio Dee Pro Fac Ext Cet Arc Hub Fac Was Fac Upp Upp Zhi Pro Fac Upp Upp War Pro Res Tes Res Qua Sec Acc Com Ac0 Total Allies 39 | . . . . . . . 2 . . . . . 3 22 . . . . . 1 . . . . 1 . . 5 . 3 . . 2 . . . . Largest Group 12 | . . . . . . . 1 . . . . . 3 12 12 11 . . . 1 . . . . 1 . . 5 . 3 . . 2 . . . . Highest-Rated Group 507 | . . . . . . . 26 . . . . . 87 507 507 462 . . . 26 . . . . 26 . . 291 . 138 . . 71 . . . . Highest-Rated Ally 159 | . . . . . . . 26 . . . . . 29 159 159 159 . . . 26 . . . . 26 . . 65 . 46 . . 45 . . . . Total Orders 6 | . . . . . . . . . . . . . . . . 1 . . . . . . . . . . . 3 . . . . 2 . . . . STAY 4 | . . . . . . . . . . . . . . . . 1 . . . . . . . . . . . 2 . . . . 1 . . . . FOLLOW 2 | . . . . . . . . . . . . . . . . . . . . . . . . . . . . 1 . . . . 1 . . . . Ally Attacks 232 | . . . . . . . . . . . . . 7 80 59 39 . . . . . . . . . . . 14 . 33 . . . . . . . Total Damage 5528 | . . . . . . . . . . . . . 100 1884 1256 611 . . . . . . . . . . . 880 . 797 . . . . . . . Kills 39 | . . . . . . . . . . . . . . 20 7 4 . . . . . . . . . . . 2 . 6 . . . . . . . Allies Corrupted . | . . . . . . . . . . . . . . . . . . . . . . . . . . . . . . . . . . . . . . Allies Melted 4 | . . . . . . . . . . . . . . 1 . . . . . . . . . . . . . 2 . . . 1 . . . . . Intel | -11 -10 -10 -10 -9 -8 -8 -7 -7 -7 -7 -7 -6 -6 -6 -6 -6 -6 -5 -5 -5 -5 -5 -5 -4 -4 -4 -4 -4 -3 -3 -3 -2 -2 -2 -1 -1 -1 ------- Run | Jun Mat Min Exi Min Mat Sto Fac Low Low Zio Dee Pro Fac Ext Cet Arc Hub Fac Was Fac Upp Upp Zhi Pro Fac Upp Upp War Pro Res Tes Res Qua Sec Acc Com Ac0 Robot Analysis Total 10 | . 1 . . . . . . . . . . . . . . . 1 . . 1 . . 4 . . . . . . . . . 1 . . 2 . Derelict Logs Recovered 12 | . . . . 2 . . . 1 1 2 . . . . . . . . . . 2 1 . 1 . . 2 . . . . . . . . . . Drone Launches . | . . . . . . . . . . . . . . . . . . . . . . . . . . . . . . . . . . . . . . Drone Recoveries . | . . . . . . . . . . . . . . . . . . . . . . . . . . . . . . . . . . . . . . Exploration | -11 -10 -10 -10 -9 -8 -8 -7 -7 -7 -7 -7 -6 -6 -6 -6 -6 -6 -5 -5 -5 -5 -5 -5 -4 -4 -4 -4 -4 -3 -3 -3 -2 -2 -2 -1 -1 -1 ------------- Run | Jun Mat Min Exi Min Mat Sto Fac Low Low Zio Dee Pro Fac Ext Cet Arc Hub Fac Was Fac Upp Upp Zhi Pro Fac Upp Upp War Pro Res Tes Res Qua Sec Acc Com Ac0 Turns Passed 26284 | 74 1005 121 382 1816 658 205 1453 185 200 340 1745 694 3020 1174 299 2672 388 719 324 1434 390 181 84 164 433 524 90 1226 211 677 662 600 933 689 165 190 157 Spaces Moved 27467 | 45 518 64 184 693 193 422 3767 554 609 1090 2070 386 1317 503 118 445 197 339 269 1978 647 358 149 276 986 426 218 1237 335 899 596 1185 1497 1477 430 420 570 Core 5 | 5 . . . . . . . . . . . . . . . . . . . . . . . . . . . . . . . . . . . . . Treads 2644 | 40 518 64 184 693 191 . . . . . . . . . 87 445 197 73 . . . . . . . . . . . . 152 . . . . . . Legs 2662 | . . . . . . . . . . . 353 386 1317 503 31 . . 72 . . . . . . . . . . . . . . . . . . . Wheels . | . . . . . . . . . . . . . . . . . . . . . . . . . . . . . . . . . . . . . . Hover 13995 | . . . . . . . . . . . . . . . . . . 194 269 1978 647 358 149 276 986 426 218 1237 335 899 444 1185 1497 1477 430 420 570 Flight 8161 | . . . . . 2 422 3767 554 609 1090 1717 . . . . . . . . . . . . . . . . . . . . . . . . . . Fastest Speed 18 | 50 160 160 160 240 240 32 26 26 26 26 26 150 150 180 210 160 160 59 59 40 21 43 43 24 21 22 22 21 42 20 36 20 20 28 18 18 20 Average Speed 68 | 147 160 160 207 240 256 32 26 26 26 28 66 150 192 192 232 163 160 147 102 51 45 43 43 36 23 90 22 73 60 51 73 29 32 33 27 29 20 Slowest Speed 512 | 160 160 160 240 240 512 99 94 26 26 94 176 150 240 210 240 240 160 270 125 121 123 43 43 49 430 151 22 460 133 140 257 97 113 106 28 30 28 Overloaded Moves 29 | . . . . . . . . . . . . . . . . . . . . . 18 . . . . . . . . . . . . . 5 6 . Propulsion Burnouts . | . . . . . . . . . . . . . . . . . . . . . . . . . . . . . . . . . . . . . . Robots Hopped 45 | . . . . . . 7 37 . 1 . . . . . . . . . . . . . . . . . . . . . . . . . . . . Cave-ins Triggered . | . . . . . . . . . . . . . . . . . . . . . . . . . . . . . . . . . . . . . . Teleports 3 | . . . . . . . . . . . . . . . . . . . . . . . . . . . . . . 1 . . . . . 1 1 Exploration Rate (%) 54 | 4 72 21 54 99 16 63 60 68 70 83 81 51 36 65 63 98 29 8 95 45 78 58 60 36 27 56 46 94 50 36 53 28 93 83 17 27 39 Regions Visited 37 Branch Regions 26 Pre-discovered Areas 7 | . . . 1 . . . . . . 2 . . . . . . . . . . . . 3 . . . . 1 . . . . . . . . . Known Exits Taken 10 | . . . . . . 1 1 . . . . 1 1 . . . 1 . . 1 . . . . 1 . . . . 1 . 1 . . 1 . . Unknown Exits Taken 25 | 1 1 1 1 1 1 . . 1 1 1 1 . . 1 1 1 . . . . 1 1 1 1 . 1 1 1 1 . 1 . 1 1 . 1 . Scrap Searched 17 | . . . . 2 . . . 3 2 2 . 1 . . . . . . . . 2 . . 3 . 1 1 . . . . . . . . . . Spaces Dug 379 | . . . . . . 1 39 11 8 . 3 67 17 1 . . 5 3 . 40 4 . . 4 26 . . . 72 15 4 27 22 9 . 1 . Terrain Destroyed 1415 | . . . . 61 58 1 131 11 8 . 119 176 131 54 . 7 169 24 . 42 65 36 . 4 28 . . 2 124 20 18 30 26 10 1 59 . Melee 169 | . . . . . . 1 39 11 8 . . . . . . . . . . 40 4 . . 4 25 . . . . . 4 10 17 5 . 1 . Projectile 200 | . . . . . 18 . . . . . 19 1 56 22 . 7 14 24 . 2 . . . . 3 . . . . 20 . . 8 5 1 . . AOE 1031 | . . . . 61 40 . 92 . . . 100 175 75 32 . . 155 . . . 61 36 . . . . . 2 124 . . 20 . . . 58 . Terrain Rammed 1 | . . . . . . 1 . . . . . . . . . . . . . . . . . . . . . . . . . . . . . . . Walls Destroyed . | . . . . . . . . . . . . . . . . . . . . . . . . . . . . . . . . . . . . . . Machines Disabled . | . . . . . . . . . . . . . . . . . . . . . . . . . . . . . . . . . . . . . . Actions | -11 -10 -10 -10 -9 -8 -8 -7 -7 -7 -7 -7 -6 -6 -6 -6 -6 -6 -5 -5 -5 -5 -5 -5 -4 -4 -4 -4 -4 -3 -3 -3 -2 -2 -2 -1 -1 -1 --------- Run | Jun Mat Min Exi Min Mat Sto Fac Low Low Zio Dee Pro Fac Ext Cet Arc Hub Fac Was Fac Upp Upp Zhi Pro Fac Upp Upp War Pro Res Tes Res Qua Sec Acc Com Ac0 Total 33380 | 50 595 80 185 788 293 469 4081 574 630 1107 2375 473 1620 654 146 2341 236 504 294 2246 720 368 169 304 1121 525 250 1546 340 1085 753 1411 1875 1641 462 470 599 Wait 3932 | . 10 13 . 48 10 13 176 2 7 2 179 62 131 62 6 1832 19 51 1 139 52 . 4 8 54 65 28 222 . 106 55 182 290 71 17 8 7 Move 27342 | 44 517 63 183 692 193 408 3693 553 606 1089 2069 385 1316 502 117 444 196 339 268 1977 646 357 148 275 985 425 217 1236 334 897 595 1184 1496 1476 429 419 569 Hop 43 | . . . . . . 6 36 . 1 . . . . . . . . . . . . . . . . . . . . . . . . . . . . Pick Up 245 | 1 13 1 . 5 8 6 11 2 . 2 9 1 26 3 6 13 . 20 9 17 . . 3 . 13 2 . 11 . 14 11 3 10 16 . 3 6 Fast Attach 172 | 5 2 . 1 1 9 10 8 . 3 2 18 . 6 1 3 1 . 13 . 9 . . 5 . 6 2 . 10 . 9 22 6 7 8 1 3 1 Attach 106 | . 1 . . . 6 2 7 . 1 . 7 . 3 . . 2 . 7 1 5 1 1 1 1 5 5 . 2 2 9 6 5 3 12 3 6 2 Detach 52 | . . . . . 1 1 3 . 1 . 11 . 3 . . 1 . 1 1 . 1 . 1 1 2 2 . 3 1 4 2 2 . 6 1 2 1 Swap 187 | . 3 . . 7 8 4 18 2 . 1 4 . 22 1 2 10 . 4 1 15 6 . . 3 5 5 1 10 . 7 4 5 15 7 1 11 5 Drop 264 | . . 1 1 5 11 10 7 3 1 6 22 3 13 1 11 11 . 24 . 14 . . 7 . 14 1 . 22 . 10 16 8 12 18 1 9 2 Fire 554 | . 49 2 . 29 47 . 4 . . . 37 22 99 45 1 27 21 45 . 7 9 6 . . 6 . . 4 3 28 18 3 19 14 6 3 . Melee 341 | . . . . . . 8 55 12 10 5 9 . . . . . . . 11 63 5 4 . 15 31 18 4 4 . . 24 13 23 12 3 6 6 Ram 3 | . . . . . . 1 . . . . . . . . . . . . . . . . . 1 . . . . . . . . . 1 . . . Kick 4 | . . . . . . . . . . . . . 1 3 . . . . . . . . . . . . . . . . . . . . . . . Crush 1 | . . . . 1 . . . . . . . . . . . . . . . . . . . . . . . . . . . . . . . . . Escape Stasis 11 | . . . . . . . . . . . . . . 10 . . . . . . . . . . . . . . . 1 . . . . . . . Rewire 46 | . . . . . . . . . . . . . . 26 . . . . 2 . . . . . . . . 18 . . . . . . . . . Trap 77 | . . . . . . . 63 . . . 10 . . . . . . . . . . . . . . . . 4 . . . . . . . . . Miscellaneous . | . . . . . . . . . . . . . . . . . . . . . . . . . . . . . . . . . . . . . . Route ------- -11/Junkyard -10/Materials (discovered 2 exits: [*Mat] / [*Min]) -10/Mines -10/Exiles (discovered 2 exits: [*Min x2]) -9/Mines (discovered 2 exits: [*Mat x2]) -8/Materials (discovered 2 exits: Fac / *Sto) -8/Storage -7/Factory (discovered 5 exits: *Fac x3 / *Low x2) -7/Lower Caves -7/Lower Caves (discovered 2 exits: Fac / *Zio) -7/Zion (discovered 2 exits: [*Dee] / [*Pro]) -7/Deep Caves -6/Proximity Caves -6/Factory (discovered 6 exits: *Fac x2 / *Low x2 / *Ext x2) -6/Extension (discovered 2 exits: *Fac / *Cet) -6/Cetus -6/Archives (discovered 3 exits: *Fac / *Hub x2) -6/Hub_04(d) (discovered 4 exits: *Fac x4) -5/Factory -5/Waste -5/Factory (discovered 3 exits: *Fac / *Upp x2) -5/Upper Caves -5/Upper Caves -5/Zhirov -4/Proximity Caves -4/Factory (discovered 2 exits: *Upp x2) -4/Upper Caves -4/Upper Caves -4/Warlord -3/Proximity Caves -3/Research (discovered 3 exits: Arm / *Tes x2) -3/Testing -2/Research (discovered 2 exits: *Qua x2) -2/Quarantine (discovered 2 exits: *Acc / *Sec) -2/Section 7 -1/Access -1/Command -1/Access_0 To Epsilon Eridani History --------- Turn | Location | Event 7 | -11/Junkyard | Discovered new exit (range 14) 75 | -11/Junkyard | Entered Materials 294 | -10/Materials | Discovered new exit (range 8) 303 | -10/Materials | Build established: Mutant 711 | -10/Materials | Discovered new exit (range 15) 1034 | -10/Materials | Core integrity fell below 50% 1080 | -10/Materials | Entered Mines 1193 | -10/Mines | Deemed a non-threat by the Exiles lab entrance 1194 | -10/Mines | Discovered new exit (range 5) 1201 | -10/Mines | Entered Exiles 1225 | -10/Exiles | Discovered new exit (range 15) 1245 | -10/Exiles | Met 8R-AWN 1269 | -10/Exiles | Met EX-HEX 1362 | -10/Exiles | Met EX-DEC 1489 | -10/Exiles | Learned location of Zion (-7) 1554 | -10/Exiles | Discovered new exit (range 14) 1583 | -10/Exiles | Entered Mines 1696 | -9/Mines | Learned 4 Materials zone layouts 1844 | -9/Mines | Discovered new exit (range 15) 1885 | -9/Mines | Discovered new exit (range 9) 2432 | -9/Mines | Received a Rocket Launcher from a helpful Derelict 2568 | -9/Mines | Joined a pair of Derelicts in attacking an 0b10 outpost 2974 | -9/Mines | Destroyed 7 combat bots 3399 | -9/Mines | Entered Materials 3399 | -8/Materials | Evolved 4 slots: Utility x4 3400 | -8/Materials | Identified exit to Factory 3960 | -8/Materials | Lost 6 parts (1p1n1u3w) 4036 | -8/Materials | Discovered new exit (range 5) 4045 | -8/Materials | Core integrity fell below 50% 4057 | -8/Materials | Entered Storage 4086 | -8/Storage | Lost 6 parts (1p2n1u2w) 4132 | -8/Storage | Core integrity fell below 20% 4136 | -8/Storage | Garrison activated, responded to threat 4258 | -8/Storage | Discovered exit to Factory (range 16) 4262 | -8/Storage | Entered Factory 4262 | -7/Factory | Evolved 2 slots: Propulsion x2 4359 | -7/Factory | Identified exit to Lower Caves 4451 | -7/Factory | Build established: Hacker-Sprinter 4493 | -7/Factory | Repaired Imp. Cesium-ion Thruster? 4574 | -7/Factory | Discovered new exit (range 10) 4612 | -7/Factory | Found Prototype Launcher 4612 | -7/Factory | Identified Rocket Array 4742 | -7/Factory | Discovered new exit (range 9) 4925 | -7/Factory | Fabricated Imp. Trap Extractor (x2) 5054 | -7/Factory | Discovered new exit (range 15) 5462 | -7/Factory | Search patrols dispatched 5715 | -7/Factory | Entered Lower Caves 5756 | -7/Lower Caves | Learned Factory terminal intel 5770 | -7/Lower Caves | Encountered a Warlord checkpoint 5885 | -7/Lower Caves | Discovered new exit (range 14) 5900 | -7/Lower Caves | Entered another Lower Caves area 5906 | -7/Lower Caves | Build established: Trapper-Sprinter 5965 | -7/Lower Caves | Attracted the attention of an 0b10 checkpoint 6022 | -7/Lower Caves | Found Alien Artifact 6022 | -7/Lower Caves | Identified Core Expander 6022 | -7/Lower Caves | Installed Core Expander, added new Utility slot 6040 | -7/Lower Caves | Identified exit to Factory 6044 | -7/Lower Caves | Encountered a Warlord checkpoint 6048 | -7/Lower Caves | Spotted B-75 Beast 6098 | -7/Lower Caves | Discovered new exit (range 9) 6100 | -7/Lower Caves | Entered Zion 6123 | -7/Zion | Discovered new exit (range 16) 6177 | -7/Zion | Found Prototype Launcher 6177 | -7/Zion | Identified Gui. Missile Launcher 6282 | -7/Zion | Given A8's code to call for help 6292 | -7/Zion | Learned Factory stockpile data 6297 | -7/Zion | Learned location of Armory (-3) 6335 | -7/Zion | Discovered new exit (range 3) 6335 | -7/Zion | Saw the warning signs outside the Deep Caves entrance 6353 | -7/Zion | Found Rocket Array 6395 | -7/Zion | Found CR-A16's Pointy Stick 6440 | -7/Zion | Entered Deep Caves 6507 | -7/Deep Caves | Attacked by Z-Imprinter 6512 | -7/Deep Caves | Destroyed Z-Imprinter 6546 | -7/Deep Caves | Found Prototype Device 6546 | -7/Deep Caves | Identified Zio. Metafield Generator 6772 | -7/Deep Caves | Found Prototype Protection 6772 | -7/Deep Caves | Identified Zio. Heavy Carapace 7168 | -7/Deep Caves | Build established: Mutant 7204 | -7/Deep Caves | Core integrity fell below 50% 7296 | -7/Deep Caves | Spotted as-47356 7339 | -7/Deep Caves | Spotted as-72680 7467 | -7/Deep Caves | Triggered Deep Caves wall 7467 | -7/Deep Caves | Spotted AS-39442 7467 | -7/Deep Caves | Spotted AS-71245 7475 | -7/Deep Caves | Destroyed AS-39442 7487 | -7/Deep Caves | Found Prototype Slashing Weapon 7487 | -7/Deep Caves | Identified Longsword +1 7494 | -7/Deep Caves | Destroyed AS-71245 7499 | -7/Deep Caves | Destroyed 35 combat bots 7505 | -7/Deep Caves | Exposed GOLEM chamber 7507 | -7/Deep Caves | Found GOLEM Unit 8176 | -7/Deep Caves | Discovered new exit (range 7) 8185 | -7/Deep Caves | Entered Proximity Caves 8209 | -6/Proximity Caves | Spotter reported a threat 8753 | -6/Proximity Caves | Discovered exit to Factory (range 14) 8846 | -6/Proximity Caves | Received a Behemoth hack from an annoying Tinkerer 8879 | -6/Proximity Caves | Entered Factory 8879 | -6/Factory | Evolved 2 slots: Utility x2 8881 | -6/Factory | Loaded intel: 27 terminal locations 9029 | -6/Factory | Garrison activated, responded to threat 9276 | -6/Factory | Build established: Hacker-Golem 9339 | -6/Factory | Lost 6 parts (1n5u) 9406 | -6/Factory | Fabricated Energy Filter (x2) 9566 | -6/Factory | Discovered new exit (range 6) 9610 | -6/Factory | Discovered new exit (range 15) 9895 | -6/Factory | Build established: Golem 10225 | -6/Factory | Lost 5 parts (1p3u1w) 10296 | -6/Factory | Build established: Hacker-Golem 10371 | -6/Factory | Identified exit to Lower Caves 10371 | -6/Factory | Identified exit to Extension 10976 | -6/Factory | Discovered new exit (range 14) 11381 | -6/Factory | Discovered new exit (range 16) 11570 | -6/Factory | Build established: Hacker-Mutant 11682 | -6/Factory | Core integrity fell below 50% 11899 | -6/Factory | Entered Extension 11981 | -6/Extension | Rescued a captive Derelict 11981 | -6/Extension | Rescued a captive Derelict 12263 | -6/Extension | Rescued a captive Derelict 12393 | -6/Extension | Rescued a captive Derelict 12425 | -6/Extension | Rescued a captive Derelict 12426 | -6/Extension | Rescued a captive Derelict 12775 | -6/Extension | Rescued a captive Derelict 12777 | -6/Extension | Rescued a captive Derelict 12824 | -6/Extension | Rescued a captive Derelict 12824 | -6/Extension | Rescued a captive Derelict 12883 | -6/Extension | Rescued A7 12925 | -6/Extension | Energy Cycler disabled 12925 | -6/Extension | Rescued a captive Derelict 12925 | -6/Extension | Rescued a captive Derelict 12925 | -6/Extension | Rescued a captive Derelict 12928 | -6/Extension | Rescued a captive Derelict 12928 | -6/Extension | Rescued a captive Derelict 12929 | -6/Extension | Rescued a captive Derelict 12938 | -6/Extension | Rescued a captive Derelict 13043 | -6/Extension | Discovered new exit (range 10) 13045 | -6/Extension | Discovered new exit (range 6) 13073 | -6/Extension | Entered Cetus 13073 | -6/Cetus | Accompanied by 12 allies (A7) 13078 | -6/Cetus | Acquired a Cetus Manufacturing Module code from A7 13100 | -6/Cetus | Spotted Cetus Guard 13100 | -6/Cetus | Spotted Cetus Guard 13102 | -6/Cetus | Spotted Cetus Guard 13102 | -6/Cetus | Spotted Cetus Guard 13114 | -6/Cetus | Allies destroyed Cetus Guard 13116 | -6/Cetus | Allies destroyed Cetus Guard 13116 | -6/Cetus | Allies destroyed Cetus Guard 13120 | -6/Cetus | Allies destroyed Cetus Guard 13249 | -6/Cetus | Started Cetus Manufacturing Module 13269 | -6/Cetus | Cetus Manufacturing Module disabled 13300 | -6/Cetus | Escorted A7 to Cetus Mainframe 13335 | -6/Cetus | Discovered new exit (range 15) 13372 | -6/Cetus | Entered Archives 13372 | -6/Archives | Accompanied by 11 allies (A7) 13377 | -6/Archives | Received a hacking code to weaken MAIN.C 13572 | -6/Archives | Discovered new exit (range 16) 13644 | -6/Archives | Discovered new exit (range 14) 13868 | -6/Archives | Discovered new exit (range 15) 16044 | -6/Archives | Entered Hub_04(d) 16289 | -6/Hub_04(d) | Identified exit to Factory 16382 | -6/Hub_04(d) | Network Hub disabled 16401 | -6/Hub_04(d) | Disrupted transfer network 16425 | -6/Hub_04(d) | Spotted Lightning 16430 | -6/Hub_04(d) | Network Hub disabled 16432 | -6/Hub_04(d) | Entered Factory 16432 | -5/Factory | Evolved 2 slots: Propulsion x2 16918 | -5/Factory | Discovered new exit (range 10) 17132 | -5/Factory | Central database locked down 17151 | -5/Factory | Manually triggered Chute Trap 17151 | -5/Factory | Sucked down chute 17151 | -5/Factory | Entered Waste 17151 | -5/Waste | The area was eerily silent 17155 | -5/Waste | Found Antimissile System 17367 | -5/Waste | Found Prototype Device 17396 | -5/Waste | Build established: Wizard-Mutant 17413 | -5/Waste | Discovered new exit (range 15) 17475 | -5/Waste | Entered Factory 17481 | -5/Factory | Identified exit to Upper Caves 17481 | -5/Factory | Central database locked down 17505 | -5/Factory | Found Prototype Launcher 17505 | -5/Factory | Identified Tesla Bomb Launcher 17525 | -5/Factory | Identified Exp. Weapon Cycler 17722 | -5/Factory | Fabricated Exp. Utility Shielding? 17758 | -5/Factory | Repaired Broken Imp. Fusion Compressor? 17782 | -5/Factory | Repaired Broken Cmb. Linear Gravjet? 17824 | -5/Factory | Fabricated Cmb. Linear Gravjet (x2) 17934 | -5/Factory | Repaired Imp. Remote Force Field? 17986 | -5/Factory | Repaired Broken Graviton Reactor? 18054 | -5/Factory | Repaired Centrium Medium Armor Plating? 18054 | -5/Factory | Lost 3 parts (1p1u1w) 18221 | -5/Factory | Repaired Antimissile System? 18627 | -5/Factory | Repaired Cmb. Linear Gravjet? 18677 | -5/Factory | Discovered new exit (range 16) 18827 | -5/Factory | Fabricated Mni. Smartbomb Launcher? 18909 | -5/Factory | Entered Upper Caves 19007 | -5/Upper Caves | Learned Factory stockpile data 19036 | -5/Upper Caves | Learned Factory interactive machine intel 19183 | -5/Upper Caves | Build established: Hacker-Mutant 19222 | -5/Upper Caves | Attracted the attention of an 0b10 outpost 19243 | -5/Upper Caves | Destroyed 9 combat bots 19294 | -5/Upper Caves | Discovered new exit (range 10) 19299 | -5/Upper Caves | Entered another Upper Caves area 19301 | -5/Upper Caves | Learned Factory interactive machine intel 19476 | -5/Upper Caves | Discovered new exit (range 9) 19480 | -5/Upper Caves | Entered Zhirov 19480 | -5/Zhirov | Discovered new exit (range 4) 19489 | -5/Zhirov | Met Zhirov 19498 | -5/Zhirov | Learned location of Quarantine (-2) 19498 | -5/Zhirov | Learned location of Testing (-3) 19498 | -5/Zhirov | Learned location of Command (-1) 19501 | -5/Zhirov | Zhirov requested help retrieving the SGEMP Prototype 19508 | -5/Zhirov | Found Alien Artifact 19508 | -5/Zhirov | Identified Integrated Reactor 19508 | -5/Zhirov | Installed Integrated Reactor, increased core energy generation (+10) 19517 | -5/Zhirov | Found Alien Artifact 19564 | -5/Zhirov | Entered Proximity Caves 19567 | -4/Proximity Caves | Learned location of 1 exit from Research 19726 | -4/Proximity Caves | Discovered new exit (range 7) 19728 | -4/Proximity Caves | Entered Factory 19728 | -4/Factory | Evolved 2 slots: Power x1, Utility x1 19730 | -4/Factory | Loaded intel: 52 interactive machine locations 19822 | -4/Factory | Identified exit to Upper Caves 19880 | -4/Factory | Fabricated Cmb. Linear Gravjet (x2) 19955 | -4/Factory | Fabricated Cmb. Linear Gravjet (x2) 20136 | -4/Factory | Build established: Wizard-Sprinter 20161 | -4/Factory | Entered Upper Caves 20454 | -4/Upper Caves | Build established: Wizard-Mutant 20684 | -4/Upper Caves | Discovered new exit (range 7) 20685 | -4/Upper Caves | Entered another Upper Caves area 20695 | -4/Upper Caves | Learned Research stockpile data 20760 | -4/Upper Caves | Encountered a Warlord checkpoint 20762 | -4/Upper Caves | Learned Research garrison access intel 20773 | -4/Upper Caves | Discovered new exit (range 4) 20775 | -4/Upper Caves | Entered Warlord 21089 | -4/Warlord | Learned Quarantine trap positions 21089 | -4/Warlord | Learned Armory emergency access door positions 21089 | -4/Warlord | Learned Research emergency access door positions 21112 | -4/Warlord | Build established: Hacker-Mutant 21304 | -4/Warlord | Warlord's base attacked by MAIN.C 21346 | -4/Warlord | Met Warlord 21462 | -4/Warlord | Found Prototype Energy Gun 21462 | -4/Warlord | Identified Vortex Rifle 21469 | -4/Warlord | Found Prototype Energy Cannon 21469 | -4/Warlord | Identified Vortex Cannon 21472 | -4/Warlord | Found Vortex Cannon 21479 | -4/Warlord | Found Vortex Rifle 21497 | -4/Warlord | Found Prototype Launcher 21612 | -4/Warlord | Spotted B-90 Cyclops 21614 | -4/Warlord | Spotted B-86 Titan 21654 | -4/Warlord | Warlord forces counterattacked 21723 | -4/Warlord | Found Prototype Device 21723 | -4/Warlord | Identified Exp. Cloaking Device 21735 | -4/Warlord | Found Prototype Reactor 21735 | -4/Warlord | Identified Vortex Chain Reactor 21902 | -4/Warlord | Opened side exit 21979 | -4/Warlord | Warlord base infiltrated, sounded retreat 21998 | -4/Warlord | Discovered new exit (range 9) 22001 | -4/Warlord | Entered Proximity Caves 22022 | -3/Proximity Caves | Spotted B-86 Titan 22031 | -3/Proximity Caves | Identified Vortex Catalyst Activator 22189 | -3/Proximity Caves | Attracted the attention of an 0b10 base 22209 | -3/Proximity Caves | Discovered new exit (range 11) 22212 | -3/Proximity Caves | Entered Research 22212 | -3/Research | Evolved 2 slots: Propulsion x2 22213 | -3/Research | Identified exit to Testing 22216 | -3/Research | Loaded intel: 3 garrison access locations 22229 | -3/Research | Spotted B-86 Titan 22281 | -3/Research | Fabricated Exp. Utility Shielding (x1) 22358 | -3/Research | Fabricated Exp. Hacking Suite? 22393 | -3/Research | Identified exit to Armory 22528 | -3/Research | Identified Transdimensional Reconstructor 22528 | -3/Research | Warped through subspace 22621 | -3/Research | Allied Derelicts emerged from ambush trap array 22621 | -3/Research | Garrison activated, responded to threat 22671 | -3/Research | Lost 3 parts (1p1n1u) 22706 | -3/Research | Found Fusion Bomb Launcher 22715 | -3/Research | Found Vibroblade 22775 | -3/Research | Found Adv. Powered Armor 22889 | -3/Research | Entered Testing 22937 | -3/Testing | Found Prototype Ballistic Gun 22937 | -3/Testing | Identified Hyp. Multirail 23006 | -3/Testing | Lost 3 parts (3n) 23104 | -3/Testing | Fabricated Cmb. Linear Gravjet? 23164 | -3/Testing | Found Prototype Ballistic Cannon 23164 | -3/Testing | Identified Perforator 23329 | -3/Testing | Fabricated Cmb. Linear Gravjet? 23380 | -3/Testing | Fabricated Cmb. Linear Gravjet (x2) 23424 | -3/Testing | Core integrity fell below 50% 23429 | -3/Testing | System corruption reached 10% 23483 | -3/Testing | Discovered new exit (range 4) 23490 | -3/Testing | Found Prototype Device 23538 | -3/Testing | Fabricated Mak. ECM Suite (x1) 23551 | -3/Testing | Entered Research 23551 | -2/Research | Warlord forces began assault on 0b10 23551 | -2/Research | Evolved 2 slots: Power x1, Propulsion x1 23599 | -2/Research | Identified exit to Quarantine 23633 | -2/Research | Met up with Warlord 23661 | -2/Research | Research machine network offline 23721 | -2/Research | Spotted B-90 Cyclops 23860 | -2/Research | Spotted Striker 23860 | -2/Research | Spotted Striker 24003 | -2/Research | Spotted YK-W3Y(L) 24019 | -2/Research | Borebot progress halted 24048 | -2/Research | Spotted Striker 24090 | -2/Research | Found Prototype Processor 24090 | -2/Research | Identified Exp. Core Analyzer 24103 | -2/Research | Borebot progress halted 24151 | -2/Research | Entered Quarantine 24152 | -2/Quarantine | Loaded intel: 19 trap records 24153 | -2/Quarantine | Identified AEGIS Remote Shield 24209 | -2/Quarantine | Found Alien Artifact 24233 | -2/Quarantine | Identified Subatomic Replicator 24234 | -2/Quarantine | Build established: Hacker-Sprinter 24262 | -2/Quarantine | Repaired Cmb. Linear Gravjet 24287 | -2/Quarantine | Repaired Cmb. Linear Gravjet 24301 | -2/Quarantine | Found Alien Impact Weapon 24310 | -2/Quarantine | Cryocooling Duct disabled 24325 | -2/Quarantine | Ambient heat levels rising (+20) 24325 | -2/Quarantine | Non-combat units ordered to evacuate 24327 | -2/Quarantine | Spotted Alpha 7 24450 | -2/Quarantine | Found Alien Energy Cannon 24462 | -2/Quarantine | Found Alien Slashing Weapon 24488 | -2/Quarantine | Identified Sigix Broadsword 24601 | -2/Quarantine | Discovered new exit (range 10) 24678 | -2/Quarantine | Repaired Exp. Utility Shielding 24733 | -2/Quarantine | Repaired Cld. Antigrav System 25028 | -2/Quarantine | Spotted Fortress 25082 | -2/Quarantine | Discovered new exit (range 6) 25084 | -2/Quarantine | Entered Section 7 25095 | -2/Section 7 | Found Alien Artifact 25112 | -2/Section 7 | Found Prototype Device 25112 | -2/Section 7 | Identified Exp. Force Field 25119 | -2/Section 7 | Identified Core Reset Matrix 25140 | -2/Section 7 | Build established: Scavenger-Sprinter 25166 | -2/Section 7 | Found Alien Artifact 25220 | -2/Section 7 | Identified Integrated Dissipator 25223 | -2/Section 7 | Installed Integrated Dissipator, increased core heat dissipation (+20) 25305 | -2/Section 7 | Found Alien Artifact 25328 | -2/Section 7 | Spotted S7 Guard 25338 | -2/Section 7 | Found Alien Artifact 25352 | -2/Section 7 | Spotted S7 Guard 25357 | -2/Section 7 | Found Alien Artifact 25406 | -2/Section 7 | Identified Integrated Mediator 25406 | -2/Section 7 | Identified Integrated Thermoelectric Network 25406 | -2/Section 7 | Identified Core Regenerator 25427 | -2/Section 7 | Installed Integrated Mediator, increased core attachment efficiency. 25428 | -2/Section 7 | Installed Integrated Thermoelectric Network, gained heat-energy exchange potential 25456 | -2/Section 7 | Spotted Executioner 25457 | -2/Section 7 | Spotted Executioner 25462 | -2/Section 7 | Spotted Alpha 7 25468 | -2/Section 7 | Spotted B-99 Colossus 25496 | -2/Section 7 | Spotted Executioner 25499 | -2/Section 7 | Spotted Executioner 25541 | -2/Section 7 | Found Alien Artifact 25541 | -2/Section 7 | Identified LRC Insulator 25541 | -2/Section 7 | Installed LRC Insulator, gained EM resistance (25) 25543 | -2/Section 7 | Found Alien Artifact 25543 | -2/Section 7 | Identified LRC Boosters 25543 | -2/Section 7 | Installed LRC Boosters, increased mass support (+10) 25589 | -2/Section 7 | Build established: Machinist-Sprinter 25640 | -2/Section 7 | Found Alien Reactor 25640 | -2/Section 7 | Identified Matter Drive 25642 | -2/Section 7 | Found Transdimensional Reconstructor 25645 | -2/Section 7 | Found Transdimensional Reconstructor 25652 | -2/Section 7 | Found Alien Artifact 25736 | -2/Section 7 | Found Integrated Reactor 25736 | -2/Section 7 | Installed Integrated Reactor, increased core energy generation (+10) 25750 | -2/Section 7 | Found Alien Artifact 25757 | -2/Section 7 | Discovered new exit (range 8) 25758 | -2/Section 7 | Spotted S7 Guard 25764 | -2/Section 7 | Used Subatomic Replicator to create Alien Artifact 25765 | -2/Section 7 | Found Alien Artifact 25773 | -2/Section 7 | Entered Access 25773 | -1/Access | Evolved 2 slots: Utility x2 25873 | -1/Access | Spotted B-99 Colossus 25889 | -1/Access | Identified exit to Command 25936 | -1/Access | Spotted B-99 Colossus 25936 | -1/Access | Spotted B-99 Colossus 25938 | -1/Access | Entered Command 25951 | -1/Command | Phase Generator disabled 25957 | -1/Command | Spotted B-99 Colossus 26005 | -1/Command | Spotted B-99 Colossus 26048 | -1/Command | Identified Core Membrane 26048 | -1/Command | Installed Core Membrane, gained immunity to corruption 26049 | -1/Command | Found Prototype Hackware 26049 | -1/Command | Identified Exp. System Shield 26115 | -1/Command | Identified Supercharged TR 26115 | -1/Command | Warped through subspace to slip node 26115 | -1/Command | Discovered new exit (range 3) 26116 | -1/Command | MAIN.C activated Command garrisons 26116 | -1/Command | Identified Terrabomb 26116 | -1/Command | Used Terrabomb 26128 | -1/Command | Entered Access_0 26130 | -1/Access_0 | Met Architect 26178 | -1/Access_0 | Found Core Regenerator 26201 | -1/Access_0 | A6 warped into view 26229 | -1/Access_0 | Subspace Access Node disabled 26259 | -1/Access_0 | A5 warped into view 26266 | -1/Access_0 | Subspace Access Node disabled 26282 | -1/Access_0 | Found Alien Artifact 26282 | -1/Access_0 | Identified Hpw. Transdimensional Reconstructor 26282 | -1/Access_0 | Warped through subspace to slip node 26282 | -1/Access_0 | Discovered new exit (range 8) 26285 | *** | Escaped! Last Messages --------------- 26215_ Dropped Cld. Antigrav System. 26215_ Critical hit (Destroy). 26216_ Dropped Cld. Antigrav System. 26217_ Quantum Shear penetrates Wall. 26217_ Penetrated by HV Slug. 26219_ Quantum Shear penetrates Wall. 26220_ HV Slug penetrates Wall. 26221_ Quantum Shear penetrates Wall. 26229_ Subspace Access Node disabled. 26248_ Quantum Shear penetrates Wall. A5 warps into view. 26266_ Subspace Access Node disabled. 26278_ Workstation disabled. 26282_ Acquired Alien Artifact. 26282_ Identified Hpw. Transdimensional Reconstructor. [Achievement: Artifact Hunter] 26282_ Warped through subspace, drawn to slip node. 26282_ EXIT=FOUND 26282_ A0_RES: I have more important things to do than play hide-and-seek. Deal with this piece of junk if it returns. Map ----- +----------------------------------------------------+ | | | | | | | | | | | | | | | | | | | | | | | | | | | | | | | | | ?????????????????????????????????????????????????? | | ?????????????????????????????????????????????????? | | ?????????????????????????????????????????????????? | | ?????????????????????????????????????????????????? | | ?????????????????????????????????????????????????? | | ?????????????????????#???????????????????????????? | | ????#???????????????????###??????????????????????? | | ???????????????????????## ##?????????????????????? | | ???????????????????????# #?????????????????????? | | ???????????????????????# @ #?????????????????????? | | ?????????????????#????## #?????????????????????? | | ??????????????????????# #?????????????????????? | | ??????????????????????# ##?????????????????????? | | ??????????????????????## #???????????????#?????? | | ??????????????????????# #?????????????????????? | | ??????????????????????# ##?????????????????????? | | ????????#????????????## < #?????????????????????? | | ??????????????????????# ##?????????????????????? | | ??????????????????????## #??????????????????????? | | ???????????????????????####??????????????????????? | | ?????????????????????????????????????????????????? | | ??????????????????????????#?????#????????????????? | | ?????????????????????????????????????????????????? | | ?????????????????????????????????????????????????? | | ?????????????????????????????????????????????????? | | ?????????????????????????????????????????????????? | | ?????????????????????????????????????????????????? | | ?????????????????????????????????????????????????? | | ?????????????????????????????????????????????????? | | ?????????????????????????????????????????????????? | | ?????????????????????????????????????????????????? | | ?????????????????????????????????????????????????? | | ?????????????????????????????????????????????????? | | ?????????????????????????????????????????????????? | +----------------------------------------------------+ Best States ------------- Heat Dissipation 103 Energy Generation 85 Energy Capacity 1350 Matter Stores 300 Matter Capacity 600 Sight Range 22 Robot Scan Range 16 Terrain Scan Range 24 Terrain Scan Density 210 ECM Strength 2 Jamming Range 16 Cloak Strength 4 Power Amplification 30 Additional Mass Support 20 Corruption Block 4 Armor Coverage 1200 Resistance: KI 15 Resistance: TH 15 Resistance: EX 15 Resistance: EM 25 Resistance: I 15 Resistance: S 15 Resistance: P 15 Propulsion Shielding 90 Utility Shielding 90 Point Defense Rating 240 Phase Shifting 10 Evasion (%) 83 Targeting Accuracy 8 Target Analysis 8 Core Analysis 8 Recoil Reduction 4 Matter Filtering 30 Energy Filtering 30 Offensive Hacking 60 Defensive Hacking 28 Authchip Count 4 Trap Extractor Capacity 6 Item Schematics ----------------- Imp. Propulsion Shielding | -8/Storage | Hacked Imp. Trap Extractor | -7/Factory | Hacked Imp. Datajack | -7/Factory | Hacked Hyp. Gauss Rifle | -7/Zion | Archive Imp. Medium Armor Plating | -7/Zion | Archive Lgt. Fission Core | -7/Zion | Archive Energy Filter | -7/Zion | Archive Tesla Rifle | -7/Zion | Archive Mni. Drone Bay | -7/Zion | Archive Proton Cannon | -7/Zion | Archive Mak. Flight Unit | -7/Zion | Archive Arm. Leg | -7/Zion | Archive Imp. Shield Generator | -7/Zion | Archive Lyr. Light Armor Plating | -7/Zion | Archive Bore Cannon | -7/Zion | Archive Slug Cannon | -7/Zion | Free Enh. Flamer | -7/Zion | Free Ripper | -7/Zion | Free Adv. Hacking Suite | -6/Factory | Hacked Weapon Mount | -6/Factory | Hacked Mni. Smartbomb Launcher | -5/Factory | Hacked Cld. Gravmag System | -5/Factory | Hacked Exp. Utility Shielding | -5/Factory | Hacked Cmb. Linear Gravjet | -5/Factory | Scanalyzed Graviton Reactor | -5/Factory | Scanalyzed Exp. Weapon Cycler | -5/Factory | Scanalyzed Antimissile System | -5/Factory | Scanalyzed Imp. Fusion Compressor | -5/Factory | Scanalyzed Centrium Medium Armor Plating | -5/Factory | Scanalyzed Mak. ECM Suite | -5/Factory | Scanalyzed Centrium Heavy Armor Plating | -5/Factory | Hacked Assault Drone Bay | -5/Zhirov | Free Exp. Heat Sink | -5/Zhirov | Free Exp. Optical Array | -5/Zhirov | Free Imp. Arc Thrower | -5/Zhirov | Free Phase Shifter | -4/Factory | Hacked Adv. Reaction Control System | -4/Factory | Hacked Exp. Hacking Suite | -4/Factory | Hacked Exp. Terrain Scan Processor | -4/Factory | Hacked Exp. Signal Interpreter | -4/Factory | Hacked Cld. Proton Cannon | -2/Quarantine | Archive Exp. Gyrokinetic Inverter | -2/Quarantine | Archive Robot Schematics ------------------ Y-45 Defender | -7/Factory | Hacked L-61 Swordsman | -7/Zion | Archive B-36 Bruiser | -7/Zion | Archive H-55 Commando | -7/Zion | Archive A-02 Transporter | -7/Zion | Archive Fabricated ------------ Imp. Trap Extractor | x2 | -7/Factory | Authchip Energy Filter | x2 | -6/Factory | Authchip Exp. Utility Shielding | x1 | -5/Factory | Authchip Cmb. Linear Gravjet | x2 | -5/Factory Mni. Smartbomb Launcher | x1 | -5/Factory | Authchip Cmb. Linear Gravjet | x2 | -4/Factory | Authchip Cmb. Linear Gravjet | x2 | -4/Factory | Authchip Exp. Utility Shielding | x1 | -3/Research | Authchip Exp. Hacking Suite | x1 | -3/Research | Authchip Cmb. Linear Gravjet | x2 | -3/Testing | Authchip Cmb. Linear Gravjet | x2 | -3/Testing | Authchip Cmb. Linear Gravjet | x2 | -3/Testing | Authchip Mak. ECM Suite | x1 | -3/Testing | Authchip Alien Tech Used ----------------- Core Expander Integrated Reactor Transdimensional Reconstructor Sigix Broadsword Integrated Dissipator Integrated Mediator Integrated Thermoelectric Network LRC Insulator LRC Boosters Matter Drive Subatomic Replicator Core Membrane Supercharged TR Terrabomb High-powered Transdimensional Reconstructor Achievements -------------- Artifact Hunter Challenges ------------ None Game ------ Seed AngularWaveReactor Manual? 0 Play Time 06:38:48 Cumulative 465.1 hours Start 2023.04.15 @ 21:23:31 End 2023.04.16 @ 23:05:05 Sessions 7 Manual Loads 0 Difficulty Rogue Special Mode None Game No. 496 Rogue 487 Adventurer 8 Explorer 1 Win Type 0 Total 8 Types 5/1/2/0/0/0/0/0/0 Lore% 81 Gallery% 91 Achievement% 71 Wizard Run 0 Options --------- ASCII 0 Keyboard 0 Movement Numpad Keybinds 1 Fullscreen 2 Font 18/Terminus Map View 76x50 Tactical HUD 1 Map Filters NONE Filters NONE Steam 1 RUN: 8e3a05bd-6b43-4290-8b87-51427d65f767